Workbook

Sheet Exe Sum
N8: STOCK NAME | O8: TICKER | P8: MARKET PRICE (12/31/2024)
N9: McDonald's Corporation | O9: (MCD) | P9: 305.63
N10: CAVA Group, Inc. | O10: (CAVA) | P10: 58.69
N11: Chipotle Mexican Grill, Inc. | O11: (CMG) | P11: 37
N12: Shake Shack Inc. | O12: (SHAK) | P12: 81.17
N13: Yum! Brands, Inc. | O13: (YUM) | P13: 151.28

Sheet MEMO

Sheet Industry
A1: Company Name | C1: MCD | D1: CAVA | E1: CMG | F1: SHAK | G1: YUM | H1: Industry
A2: *Numbers in Thousands | C2: 1 | D2: 2 | E2: 3 | F2: 4 | G2: 5 | H2: Average
A3: Stock Price, Market Price of Common Stock | C3: 289.89 | D3: 170.25 | E3: 68.55 | F3: 144.65 | G3: 137.77 | H3: =AVERAGE(C3:G3) -> 162.222
A4: Revenue | C4: =_xlfn.XLOOKUP(A4,MCD!$A$2:$A$69,MCD!$B$2:$B$69,"Find it") -> 25920 | D4: 963.71 | E4: 11313.85 | F4: 1252.61 | G4: 7549 | H4: =AVERAGE(C4:G4) -> 9399.834
A5: Cost of Revenue | C5: =_xlfn.XLOOKUP(A5,MCD!$A$2:$A$69,MCD!$B$2:$B$69,"Find it") -> 11210 | D5: 532.23 | E5: 8296.16 | F5: 950.14 | G5: 2120 | H5: 4621.706
A6: Gross Profit | C6: =_xlfn.XLOOKUP(A6,MCD!$A$2:$A$69,MCD!$B$2:$B$69,"Find it") -> 14710 | D6: 431.48 | E6: 3017.69 | F6: 302.47 | G6: 5429 | H6: 4778.128
A7: SG&A Expenses | C7: =_xlfn.XLOOKUP(A7,MCD!$A$2:$A$69,MCD!$B$2:$B$69,"Find it") -> 2412 | D7: 120.5 | E7: 697.48 | F7: 149.05 | G7: 2892 | H7: 1254.206
A8: Operating Income | C8: =_xlfn.XLOOKUP(A8,MCD!$A$2:$A$69,MCD!$B$2:$B$69,"Find it") -> 11712 | D8: 43.12 | E8: 1916.33 | F8: 3.04 | G8: 2403 | H8: 3215.498
A9: Net Income Common | C9: =_xlfn.XLOOKUP(A9,MCD!$A$2:$A$69,MCD!$B$2:$B$69,"Find it") -> 8223 | D9: 130.32 | E9: 1534.11 | F9: 10.21 | G9: 1486 | H9: 2276.728
A10: Cash and Short Term Investments | C10: =_xlfn.XLOOKUP(A10,MCD!$A$2:$A$69,MCD!$B$2:$B$69,"Find it") -> 1085 | D10: 385.78 | E10: 1422.91 | F10: 320.71 | G10: 616 | H10: 766.08
A11: Receivables | C11: =_xlfn.XLOOKUP(A11,MCD!$A$2:$A$69,MCD!$B$2:$B$69,"Find it") -> 2383 | D11: 16.54 | E11: 211.19 | F11: 19.69 | G11: 775 | H11: 681.084
A12: Inventory | C12: =_xlfn.XLOOKUP(A12,MCD!$A$2:$A$69,MCD!$B$2:$B$69,"Find it") -> 56 | D12: 7.99 | E12: 48.94 | F12: 6.01 | G12: 100 | H12: 43.788
A13: Total current assets | C13: =_xlfn.XLOOKUP(A13,MCD!$A$2:$A$69,MCD!$B$2:$B$69,"Find it") -> 4599 | D13: 418.54 | E13: 1780.59 | F13: 368.22 | G13: 1871 | H13: 1807.47
A14: Total Assets | C14: =_xlfn.XLOOKUP(A14,MCD!$A$2:$A$69,MCD!$B$2:$B$69,"Find it") -> 55182 | D14: 1291.63 | E14: 9204.37 | F14: 1696.97 | G14: 6727 | H14: 14820.394
A15: Total current liabilities | C15: =_xlfn.XLOOKUP(A15,MCD!$A$2:$A$69,MCD!$B$2:$B$69,"Find it") -> 3861 | D15: 153.71 | E15: 1168.77 | F15: 187.31 | G15: 1269 | H15: 1327.958
A16: Long Term Debt (Total) | C16: =_xlfn.XLOOKUP(A16,MCD!$A$2:$A$69,MCD!$B$2:$B$69,"Find it") -> 38424 | D16: 100 | E16: 100 | F16: 246.68 | G16: 11306 | H16: 10035.336
A17: Total liabilities | C17: =_xlfn.XLOOKUP(A17,MCD!$A$2:$A$69,MCD!$B$2:$B$69,"Find it") -> 58979 | D17: 540.92 | E17: 5548.83 | F17: 1203.35 | G17: 14375 | H17: 16129.42
A18: Common Equity (Total) or Shareholders Equity | C18: =_xlfn.XLOOKUP(A18,MCD!$A$2:$A$69,MCD!$B$2:$B$69,"Find it") -> Find it | D18: 750.71 | E18: 3655.55 | F18: 493.63 | G18: -7648 | H18: -687.0275
A19: Shares (Common) | C19: =MCD!B32 -> 721.9 | D19: 114.52 | E19: 1358.75 | F19: 42.52 | G19: 279 | H19: 503.338
A20: Financial Ratio's
A21: Liquidity
A22: Current Ratio | C22: 1.191142191 | D22: =D13/D15 -> 2.722919784 | E22: 1.523473395 | F22: 1.965832043 | G22: 1.474389283 | H22: 1.775551339
A23: Quick Ratio | C23: 0.9346716628 | D23: =(D14-D12)/D17 -> 2.373068106 | E23: 1.64997486 | F23: 1.405210454 | G23: 0.4610086957 | H23: 1.364786756
A24: Net Working Capital | C24: 738 | D24: =D13-D15 -> 264.83 | E24: 611.82 | F24: 180.91 | G24: 602 | H24: 479.512
A25: Asset Management
A26: Accounts Rec. Turnover | C26: 10.87704574 | D26: =D4/'YOY MCD'!D11 -> 0.3873432476 | E26: 4.747733949 | F26: 0.525644146 | G26: 3.167855644 | H26: 3.941124545
A27: Inventory Turnover | C27: 462.8571429 | D27: =D4/D12 -> 120.6145181 | E27: 231.177973 | F27: 208.4209651 | G27: 75.49 | H27: 219.7121198
A28: Total Asset Turnover | C28: 0.4697183864 | D28: =D4/D14 -> 0.7461192447 | E28: 1.229182443 | F28: 0.7381450468 | G28: 1.122194143 | H28: 0.8610718527
A29: Debt Management
A30: Debt to Equity Ratio | C30: -10.12223393 | D30: =D16/D18 -> 0.1332072305 | E30: 0.02735566467 | F30: 0.4997265158 | G30: -1.478294979 | H30: -2.1880479
A31: Equity multiplier | C31: -14.53688093 | D31: =D14/D18 -> 1.720544551 | E31: 2.517916593 | F31: 3.437736766 | G31: -0.8795763598 | H31: -1.548051875
A32: Profitability
A33: Net Profit Margin | C33: 0.3172 | D33: 0.3172 | E33: 0.3172 | F33: 0.3172 | G33: 0.3172 | H33: 0.3172
A34: Gross Profit Margin | C34: 0.5675154321 | D34: 0.447728051 | E34: 0.2667252969 | F34: 0.2414718069 | G34: 0.7191681017 | H34: 0.4485217377
A35: Return On Assets ROA | C35: 0.1489946722 | D35: 0.2366690244 | E35: 0.3898966708 | F35: 0.2341396088 | G35: 0.3559599822 | H35: 0.2731319917
A36: Return On Equity ROE | C36: -2.165917808 | D36: 0.4071996004 | E36: 0.9817272968 | F36: 0.8049103418 | G36: -0.3130939854 | H36: -0.05703491092
A37: Market Value
A38: EPS (Net Income / Shares Common) | C38: 11.39077435 | D38: =D9/D19 -> 1.137967167 | E38: 1.129059798 | F38: 0.2401222954 | G38: 5.326164875 | H38: 3.844817696
A39: P/E | C39: 25.44954287 | D39: =D3/D38 -> 149.6088858 | E39: 60.71423333 | F39: 602.4013712 | G39: 25.86664199 | H39: 172.808135
A40: Book Value Per Share | C40: -5.258346031 | D40: =D18/D19 -> 6.555274188 | E40: 2.690377185 | F40: 11.6093603 | G40: -27.41218638 | H40: -2.363104147
A41: Market Capitalization (Stock Price * Shares Common) | C41: 209271.591 | D41: =D3*D19 -> 19497.03 | E41: 93142.3125 | F41: 6150.518 | G41: 38437.83 | H41: 73299.8563
A42: Cash Per Share | C42: 1.502978252 | D42: =D10/D19 -> 3.368669228 | E42: 1.047219871 | F42: 7.542568203 | G42: 2.207885305 | H42: 3.133864172
A43: Revenue Per Share | C43: 35.90525003 | D43: =D4/D19 -> 8.415211317 | E43: 8.326660534 | F43: 29.45931326 | G43: 27.05734767 | H43: 21.83275656
A44: Price to Book Value | C44: -39797.98776 | D44: =D41/D40 -> 2974.250877 | E44: 34620.54058 | F44: 529.7895698 | G44: -1402.216863 | H44: -615.1247201

Sheet MCD
A1: Statements | B1: 2024 | C1: 2023 | D1: 2022 | E1: 2021
A2: Revenue | B2: 25920 | C2: 25494 | D2: 23183 | E2: 23222.9
A3: Revenue Growth | B3: 0.0167 | C3: 0.0997 | D3: -0.0017 | E3: 0.209
A4: Cost of Revenue | B4: 11210 | C4: 10931 | D4: 9975 | E4: 10642.7
A5: Gross Profit | B5: 14710 | C5: 14563 | D5: 13208 | E5: 12580.2
A6: SG&A Expenses | B6: 2412 | C6: 2435 | D6: 2492 | E6: 2707.5
A7: Operating Income | B7: 11712 | C7: 11647 | D7: 9372 | E7: 10356
A8: Interest Expense (Operating) | B8: 100 | C8: 100 | D8: 1299 | E8: 1194
A9: Non-operating Income/Expense | B9: -1367 | C9: -1125 | D9: -1546 | E9: -1228.1
A10: Non-operating Interest Expenses | B10: 1506 | C10: 1361 | D10: 1207 | E10: 1185.8
A11: EBT | B11: 10345 | C11: 10522 | D11: 7825 | E11: 9127.9
A12: Income Tax Provision | B12: 2121 | C12: 2053 | D12: 1648 | E12: 1582.7
A13: Income after Tax | B13: 8224 | C13: 8469 | D13: 6177 | E13: 7545.2
A14: Dividends (Preferred) | B14: 1 | C14: 0 | D14: 100 | E14: 100
A15: Net Income Common | B15: 8223 | C15: 8469 | D15: 6177 | E15: 7545.2
A16: EPS (Basic) | B16: 11.39 | C16: 11.56 | D16: 8.33 | E16: 10.04
A17: EPS (Diluted) | B17: 11.39 | C17: 11.56 | D17: 8.33 | E17: 10.04
A18: Shares (Basic, Weighted) | B18: 718.3 | C18: 727.9 | D18: 736.5 | E18: 746.3
A19: Shares (Diluted, Weighted) | B19: 721.9 | C19: 732.3 | D19: 741.3 | E19: 751.8
A20: Gross Margin | B20: 0.5675 | C20: 0.5712 | D20: 0.5697 | E20: 0.5417
A21: EBIT Margin | B21: 0.4519 | C21: 0.4569 | D21: 0.4043 | E21: 0.4459
A22: EBT margin | B22: 0.3991 | C22: 0.4127 | D22: 0.3375 | E22: 0.3931
A23: Net Profit Margin | B23: 0.3172 | C23: 0.3322 | D23: 0.2664 | E23: 0.3249
A24: Free Cash Flow Margin | B24: 0.2621 | C24: 0.2883 | D24: 0.2384 | E24: 0.3104
A25: EBITDA | B25: 13809 | C25: 13625 | D25: 11243 | E25: 12224.1
A26: EBIT | B26: 11712 | C26: 11647 | D26: 9372 | E26: 10356
A27: Income from Continuous Operations | B27: 8224 | C27: 8469 | D27: 6177 | E27: 7545.2
A28: Consolidated Net Income/Loss | B28: 8224 | C28: 8469 | D28: 6177 | E28: 7545.2
A29: EPS (Basic, from Continuous Ops) | B29: 11.45 | C29: 11.63 | D29: 8.39 | E29: 10.11
A30: EPS (Basic, Consolidated) | B30: 11.45 | C30: 11.63 | D30: 8.39 | E30: 10.11
A31: EPS (Diluted, from Cont. Ops) | B31: 11.39 | C31: 11.56 | D31: 8.33 | E31: 10.04
A32: Shares (Diluted, Average) | B32: 721.9 | C32: 732.3 | D32: 741.3 | E32: 751.8
A33: EPS (Diluted, Consolidated) | B33: 11.39 | C33: 11.56 | D33: 8.33 | E33: 10.04
A34: EBITDA Margin | B34: 0.5328 | C34: 0.5344 | D34: 0.485 | E34: 0.5264
A35: Operating Cash Flow Margin | B35: 0.3645 | C35: 0.377 | D35: 0.3186 | E35: 0.3936
A36: Cash and Short Term Investments | B36: 1085 | C36: 4579 | D36: 2583.8 | E36: 4709.2
A37: Receivables | B37: 2383 | C37: 2488 | D37: 2115 | E37: 1872.4
A38: Inventory | B38: 56 | C38: 53 | D38: 52 | E38: 55.6
A39: Other current assets | B39: 1130 | C39: 919.1 | D39: 673 | E39: 511
A40: Total current assets | B40: 4599 | C40: 7986 | D40: 5424.2 | E40: 7148.5
A41: Property, Plant, Equpment (Net) | B41: 25295 | C41: 24908 | D41: 23773.6 | E41: 24720.6
A42: Long-Term Investments | B42: 2710 | C42: 1080 | D42: 1064.5 | E42: 1201.2
A43: Goodwill and Intangible Assets (Total) | B43: 3145 | C43: 3040 | D43: 2900.4 | E43: 2782.5
A44: Long-term assets (Other) | B44: 6095 | C44: 5618 | D44: 4707.2 | E44: 4449.5
A45: Total non-current assets | B45: 50584 | C45: 48160 | D45: 45011.4 | E45: 46705.8
A46: Total Assets | B46: 55182 | C46: 56147 | D46: 50435.6 | E46: 53854.3
A47: Accounts Payable | B47: 1029 | C47: 1103 | D47: 980.2 | E47: 1006.8
A48: Accrued Expenses | B48: 1611 | C48: 1903 | D48: 1630.8 | E48: 1710.3
A49: Current Part of Debt | B49: 100 | C49: 2192 | D49: 661 | E49: 706
A50: Current Part of Taxes to Pay | B50: 361 | C50: 705 | D50: 274.9 | E50: 360.7
A51: Other current liabilities | B51: 100 | C51: 100 | D51: 1886 | E51: 1947
A52: Total current liabilities | B52: 3861 | C52: 6859 | D52: 3802.1 | E52: 4020
A53: Long Term Debt (Total) | B53: 38424 | C53: 37153 | D53: 35903.5 | E53: 35622.7
A54: Non-current Revenue (Deferred) | B54: 778 | C54: 790 | D54: 757.8 | E54: 738.3
A55: Long Term Tax Liability (Deferred) | B55: 1914 | C55: 1681 | D55: 1997.5 | E55: 2075.6
A56: Non-current Liabilities (Other) | B56: 1115 | C56: 1313 | D56: 1843.7 | E56: 2977.8
A57: Total non-current liabilities | B57: 55119 | C57: 53995 | D57: 52636.9 | E57: 54435.3
A58: Total liabilities | B58: 58979 | C58: 60854 | D58: 56439 | E58: 58455.3
A59: Additional Paid In Capital | B59: 9281 | C59: 8893 | D59: 8547.1 | E59: 8231.6
A60: Common Stock (Net) | B60: 17 | C60: 17 | D60: 16.6 | E60: 16.6
A61: Retained Earnings | B61: 66834 | C61: 63480 | D61: 59543.9 | E61: 57534.7
A62: Treasury Stock | B62: 77375 | C62: 74640 | D62: 71624.4 | E62: 67810.2
A63: Common Equity (Total) | B63: -3796 | C63: -4706 | D63: -6003.4 | E63: -4601.01
A64: Shareholders Equity (Total) | B64: -3797 | C64: -4707 | D64: -6003.4 | E64: -4601
A65: Shareholders Equity and Liabilities (Total) | B65: 55182 | C65: 56147 | D65: 50435.6 | E65: 53854.3
A66: Shares (Common) | B66: 715.2 | C66: 722.7 | D66: 731.3 | E66: 744.8
A67: Shareholders Equity (Tangible) | B67: -6942 | C67: -7747 | D67: -8903.8 | E67: -7383.5
A68: Net Debt | B68: 37339 | C68: 34766 | D68: 33980.7 | E68: 31619.5
A69: Total Debt | B69: 38424 | C69: 39345 | D69: 36564.5 | E69: 36328.7

Sheet YOY MCD
A1: =+H48+A1:J44+A1:A1:J45 -> 0 | C1: MCD | D1: MCD | E1: % Change YOY | F1: MCD | G1: % Change YOY | H1: MCD | I1: % Change YOY | J1: MCD
A2: Year ending: | C2: 2024 | D2: 2023 | F2: 2023 | H2: 2022 | J2: 2021
A3: Stock Price | C3: 289.89 | D3: 296.51 | E3: =IFERROR((C3-D3)/D3,"Missing Info") -> -0.02232639709 | F3: 296.51 | G3: =IFERROR((F3-H3)/H3,"Missing Info") -> 0.1251470421 | H3: 263.53 | I3: =IFERROR((H3-J3)/J3,"Missing Info") -> -0.01693587496 | J3: 268.07
A4: Revenue | C4: =_xlfn.XLOOKUP(A4,MCD!$A$2:$A$69,MCD!$B$2:$B$69,"Find it") -> 25920 | D4: =_xlfn.XLOOKUP(A4,MCD!$A$2:$A$69,MCD!$C$2:$C$69,"Find it") -> 25494 | E4: =IFERROR((C4-D4)/D4,"Missing Info") -> 0.01670981407 | F4: =D4 -> 25494 | G4: =IFERROR((F4-H4)/H4,"Missing Info") -> 0.09968511409 | H4: =_xlfn.XLOOKUP(A4,MCD!$A$2:$A$69,MCD!$D$2:$D$69,"Find it") -> 23183 | I4: =IFERROR((H4-J4)/J4,"Missing Info") -> -0.001718131672 | J4: =_xlfn.XLOOKUP(A4,MCD!$A$2:$A$69,MCD!$E$2:$E$69,"Find it") -> 23222.9
A5: Cost of Revenue | C5: =_xlfn.XLOOKUP(A5,MCD!$A$2:$A$69,MCD!$B$2:$B$69,"Find it") -> 11210 | D5: =_xlfn.XLOOKUP(A5,MCD!$A$2:$A$69,MCD!$C$2:$C$69,"Find it") -> 10931 | E5: =IFERROR((C5-D5)/D5,"Missing Info") -> 0.02552373982 | F5: =D5 -> 10931 | G5: =IFERROR((F5-H5)/H5,"Missing Info") -> 0.095839599 | H5: =_xlfn.XLOOKUP(A5,MCD!$A$2:$A$69,MCD!$D$2:$D$69,"Find it") -> 9975 | I5: =IFERROR((H5-J5)/J5,"Missing Info") -> -0.06273783908 | J5: =_xlfn.XLOOKUP(A5,MCD!$A$2:$A$69,MCD!$E$2:$E$69,"Find it") -> 10642.7
A6: Gross Profit | C6: =_xlfn.XLOOKUP(A6,MCD!$A$2:$A$69,MCD!$B$2:$B$69,"Find it") -> 14710 | D6: =_xlfn.XLOOKUP(A6,MCD!$A$2:$A$69,MCD!$C$2:$C$69,"Find it") -> 14563 | E6: 0.01009407402 | F6: 14563 | G6: 0.1025893398 | H6: =_xlfn.XLOOKUP(A6,MCD!$A$2:$A$69,MCD!$D$2:$D$69,"Find it") -> 13208 | I6: 0.04990381711 | J6: =_xlfn.XLOOKUP(A6,MCD!$A$2:$A$69,MCD!$E$2:$E$69,"Find it") -> 12580.2
A7: SG&A Expenses | C7: =_xlfn.XLOOKUP(A7,MCD!$A$2:$A$69,MCD!$B$2:$B$69,"Find it") -> 2412 | D7: =_xlfn.XLOOKUP(A7,MCD!$A$2:$A$69,MCD!$C$2:$C$69,"Find it") -> 2435 | E7: -0.009445585216 | F7: 2435 | G7: -0.02287319422 | H7: =_xlfn.XLOOKUP(A7,MCD!$A$2:$A$69,MCD!$D$2:$D$69,"Find it") -> 2492 | I7: -0.07959372114 | J7: =_xlfn.XLOOKUP(A7,MCD!$A$2:$A$69,MCD!$E$2:$E$69,"Find it") -> 2707.5
A8: Operating Income | C8: =_xlfn.XLOOKUP(A8,MCD!$A$2:$A$69,MCD!$B$2:$B$69,"Find it") -> 11712 | D8: =_xlfn.XLOOKUP(A8,MCD!$A$2:$A$69,MCD!$C$2:$C$69,"Find it") -> 11647 | E8: 0.005580836267 | F8: 11647 | G8: 0.2427443449 | H8: =_xlfn.XLOOKUP(A8,MCD!$A$2:$A$69,MCD!$D$2:$D$69,"Find it") -> 9372 | I8: -0.09501738123 | J8: =_xlfn.XLOOKUP(A8,MCD!$A$2:$A$69,MCD!$E$2:$E$69,"Find it") -> 10356
A9: Net Income Common | C9: =_xlfn.XLOOKUP(A9,MCD!$A$2:$A$69,MCD!$B$2:$B$69,"Find it") -> 8223 | D9: =_xlfn.XLOOKUP(A9,MCD!$A$2:$A$69,MCD!$C$2:$C$69,"Find it") -> 8469 | E9: -0.029047113 | F9: 8469 | G9: 0.3710539097 | H9: =_xlfn.XLOOKUP(A9,MCD!$A$2:$A$69,MCD!$D$2:$D$69,"Find it") -> 6177 | I9: -0.1813338281 | J9: =_xlfn.XLOOKUP(A9,MCD!$A$2:$A$69,MCD!$E$2:$E$69,"Find it") -> 7545.2
A10: Cash and Short Term Investments | C10: =_xlfn.XLOOKUP(A10,MCD!$A$2:$A$69,MCD!$B$2:$B$69,"Find it") -> 1085 | D10: =_xlfn.XLOOKUP(A10,MCD!$A$2:$A$69,MCD!$C$2:$C$69,"Find it") -> 4579 | E10: -0.7630487006 | F10: 4579 | G10: 0.7721959904 | H10: =_xlfn.XLOOKUP(A10,MCD!$A$2:$A$69,MCD!$D$2:$D$69,"Find it") -> 2583.8 | I10: -0.4513293128 | J10: =_xlfn.XLOOKUP(A10,MCD!$A$2:$A$69,MCD!$E$2:$E$69,"Find it") -> 4709.2
A11: Receivables | C11: =_xlfn.XLOOKUP(A11,MCD!$A$2:$A$69,MCD!$B$2:$B$69,"Find it") -> 2383 | D11: =_xlfn.XLOOKUP(A11,MCD!$A$2:$A$69,MCD!$C$2:$C$69,"Find it") -> 2488 | E11: -0.04220257235 | F11: 2488 | G11: 0.1763593381 | H11: =_xlfn.XLOOKUP(A11,MCD!$A$2:$A$69,MCD!$D$2:$D$69,"Find it") -> 2115 | I11: 0.129566332 | J11: =_xlfn.XLOOKUP(A11,MCD!$A$2:$A$69,MCD!$E$2:$E$69,"Find it") -> 1872.4
A12: Inventory | C12: =_xlfn.XLOOKUP(A12,MCD!$A$2:$A$69,MCD!$B$2:$B$69,"Find it") -> 56 | D12: =_xlfn.XLOOKUP(A12,MCD!$A$2:$A$69,MCD!$C$2:$C$69,"Find it") -> 53 | E12: 0.05660377358 | F12: 53 | G12: 0.01923076923 | H12: =_xlfn.XLOOKUP(A12,MCD!$A$2:$A$69,MCD!$D$2:$D$69,"Find it") -> 52 | I12: -0.06474820144 | J12: =_xlfn.XLOOKUP(A12,MCD!$A$2:$A$69,MCD!$E$2:$E$69,"Find it") -> 55.6
A13: Total current assets | C13: =_xlfn.XLOOKUP(A13,MCD!$A$2:$A$69,MCD!$B$2:$B$69,"Find it") -> 4599 | D13: =_xlfn.XLOOKUP(A13,MCD!$A$2:$A$69,MCD!$C$2:$C$69,"Find it") -> 7986 | E13: -0.4241172051 | F13: 7986 | G13: 0.4722908447 | H13: =_xlfn.XLOOKUP(A13,MCD!$A$2:$A$69,MCD!$D$2:$D$69,"Find it") -> 5424.2 | I13: -0.241211443 | J13: =_xlfn.XLOOKUP(A13,MCD!$A$2:$A$69,MCD!$E$2:$E$69,"Find it") -> 7148.5
A14: Total Assets | C14: =_xlfn.XLOOKUP(A14,MCD!$A$2:$A$69,MCD!$B$2:$B$69,"Find it") -> 55182 | D14: =_xlfn.XLOOKUP(A14,MCD!$A$2:$A$69,MCD!$C$2:$C$69,"Find it") -> 56147 | E14: -0.01718702691 | F14: 56147 | G14: 0.1132414406 | H14: =_xlfn.XLOOKUP(A14,MCD!$A$2:$A$69,MCD!$D$2:$D$69,"Find it") -> 50435.6 | I14: -0.06348053916 | J14: =_xlfn.XLOOKUP(A14,MCD!$A$2:$A$69,MCD!$E$2:$E$69,"Find it") -> 53854.3
A15: Total current liabilities | C15: =_xlfn.XLOOKUP(A15,MCD!$A$2:$A$69,MCD!$B$2:$B$69,"Find it") -> 3861 | D15: =_xlfn.XLOOKUP(A15,MCD!$A$2:$A$69,MCD!$C$2:$C$69,"Find it") -> 6859 | E15: -0.4370899548 | F15: 6859 | G15: 0.8040030509 | H15: =_xlfn.XLOOKUP(A15,MCD!$A$2:$A$69,MCD!$D$2:$D$69,"Find it") -> 3802.1 | I15: -0.0542039801 | J15: =_xlfn.XLOOKUP(A15,MCD!$A$2:$A$69,MCD!$E$2:$E$69,"Find it") -> 4020
A16: Long Term Debt (Total) | C16: =_xlfn.XLOOKUP(A16,MCD!$A$2:$A$69,MCD!$B$2:$B$69,"Find it") -> 38424 | D16: =_xlfn.XLOOKUP(A16,MCD!$A$2:$A$69,MCD!$C$2:$C$69,"Find it") -> 37153 | E16: 0.03420988884 | F16: 37153 | G16: 0.03480162101 | H16: =_xlfn.XLOOKUP(A16,MCD!$A$2:$A$69,MCD!$D$2:$D$69,"Find it") -> 35903.5 | I16: 0.007882614176 | J16: =_xlfn.XLOOKUP(A16,MCD!$A$2:$A$69,MCD!$E$2:$E$69,"Find it") -> 35622.7
A17: Total liabilities | C17: =_xlfn.XLOOKUP(A17,MCD!$A$2:$A$69,MCD!$B$2:$B$69,"Find it") -> 58979 | D17: =_xlfn.XLOOKUP(A17,MCD!$A$2:$A$69,MCD!$C$2:$C$69,"Find it") -> 60854 | E17: -0.03081145036 | F17: 60854 | G17: 0.07822604936 | H17: =_xlfn.XLOOKUP(A17,MCD!$A$2:$A$69,MCD!$D$2:$D$69,"Find it") -> 56439 | I17: -0.03449302287 | J17: =_xlfn.XLOOKUP(A17,MCD!$A$2:$A$69,MCD!$E$2:$E$69,"Find it") -> 58455.3
A18: Common Equity (Total) | C18: =_xlfn.XLOOKUP(A18,MCD!$A$2:$A$69,MCD!$B$2:$B$69,"Find it") -> -3796 | D18: =_xlfn.XLOOKUP(A18,MCD!$A$2:$A$69,MCD!$C$2:$C$69,"Find it") -> -4706 | E18: -0.1933701657 | F18: -4706 | G18: -0.2161108705 | H18: =_xlfn.XLOOKUP(A18,MCD!$A$2:$A$69,MCD!$D$2:$D$69,"Find it") -> -6003.4 | I18: 0.3048004677 | J18: =_xlfn.XLOOKUP(A18,MCD!$A$2:$A$69,MCD!$E$2:$E$69,"Find it") -> -4601.01
A19: Shares (Common) | C19: =MCD!B32 -> 721.9 | D19: =MCD!C32 -> 732.3 | E19: -0.01420182985 | F19: =MCD!C32 -> 732.3 | G19: -0.01214083367 | H19: =MCD!D32 -> 741.3 | I19: -0.01396648045 | J19: =MCD!E32 -> 751.8
A20: Financial Ratio's | C20: MCD | D20: MCD | E20: % Change YOY | F20: MCD | G20: % Change YOY | H20: MCD | I20: % Change YOY | J20: MCD
A21: Liquidity | C21: 2024 | D21: 2023 | F21: 2023 | H21: 2022 | J21: 2021
A22: Current Ratio | C22: =C13/C15 -> 1.191142191 | D22: =D13/D15 -> 1.164309666 | E22: =IFERROR((C22-D22)/D22,"Missing Info") -> 0.0230458664 | F22: =F13/F15 -> 1.164309666 | G22: =IFERROR((F22-H22)/H22,"Missing Info") -> -0.1838756348 | H22: =H13/H15 -> 1.42663265 | I22: =IFERROR((H22-J22)/J22,"Missing Info") -> -0.1977249417 | J22: =J13/J15 -> 1.778233831
A23: Quick Ratio | C23: =(C14-C12)/C17 -> 0.9346716628 | D23: =(D14-D12)/D17 -> 0.921779998 | E23: =IFERROR((C23-D23)/D23,"Missing Info") -> 0.01398561999 | F23: =(F14-F12)/F17 -> 0.921779998 | G23: =IFERROR((F23-H23)/H23,"Missing Info") -> 0.03256498759 | H23: =(H14-H12)/H17 -> 0.8927089424 | I23: =IFERROR((H23-J23)/J23,"Missing Info") -> -0.03002174698 | J23: =(J14-J12)/J17 -> 0.9203391309
A24: Net Working Capital | C24: =C13-C15 -> 738 | D24: =D13-D15 -> 1127 | E24: =IFERROR((C24-D24)/D24,"Missing Info") -> -0.3451641526 | F24: =F13-F15 -> 1127 | G24: =IFERROR((F24-H24)/H24,"Missing Info") -> -0.3052216263 | H24: =H13-H15 -> 1622.1 | I24: =IFERROR((H24-J24)/J24,"Missing Info") -> -0.4815087102 | J24: =J13-J15 -> 3128.5
A25: Asset Management
A26: Accounts Rec. Turnover | C26: =C4/'YOY MCD'!C11 -> 10.87704574 | D26: =D4/'YOY MCD'!D11 -> 10.24678457 | E26: =IFERROR((C26-D26)/D26,"Missing Info") -> 0.06150819027 | F26: =F4/'YOY MCD'!F11 -> 10.24678457 | G26: =IFERROR((F26-H26)/H26,"Missing Info") -> -0.0651792539 | H26: =H4/'YOY MCD'!H11 -> 10.96122931 | I26: =IFERROR((H26-J26)/J26,"Missing Info") -> -0.116225546 | J26: =J4/'YOY MCD'!J11 -> 12.40274514
A27: Inventory Turnover | C27: =C4/C12 -> 462.8571429 | D27: =D4/D12 -> 481.0188679 | E27: =IFERROR((C27-D27)/D27,"Missing Info") -> -0.03775678311 | F27: =F4/F12 -> 481.0188679 | G27: =IFERROR((F27-H27)/H27,"Missing Info") -> 0.07893633835 | H27: =H4/H12 -> 445.8269231 | I27: =IFERROR((H27-J27)/J27,"Missing Info") -> 0.06739368998 | J27: =J4/J12 -> 417.6780576
A28: Total Asset Turnover | C28: =C4/C14 -> 0.4697183864 | D28: =D4/D14 -> 0.4540580975 | E28: =IFERROR((C28-D28)/D28,"Missing Info") -> 0.03448961493 | F28: =F4/F14 -> 0.4540580975 | G28: =IFERROR((F28-H28)/H28,"Missing Info") -> -0.01217734625 | H28: =H4/H14 -> 0.4596554814 | I28: =IFERROR((H28-J28)/J28,"Missing Info") -> 0.06594887781 | J28: =J4/J14 -> 0.4312171916
A29: Debt Management
A30: Total Debt to Equity | C30: =C16/C18 -> -10.12223393 | D30: =D16/D18 -> -7.89481513 | E30: =IFERROR((C30-D30)/D30,"Missing Info") -> 0.282136917 | F30: =F16/F18 -> -7.89481513 | G30: =IFERROR((F30-H30)/H30,"Missing Info") -> 0.3200867088 | H30: =H16/H18 -> -5.980527701 | I30: =IFERROR((H30-J30)/J30,"Missing Info") -> -0.2275580527 | J30: =J16/J18 -> -7.742365263
A31: Equity multiplier | C31: =C14/C18 -> -14.53688093 | D31: =D14/D18 -> -11.93093923 | E31: =IFERROR((C31-D31)/D31,"Missing Info") -> 0.2184188228 | F31: =F14/F18 -> -11.93093923 | G31: =IFERROR((F31-H31)/H31,"Missing Info") -> 0.4201516499 | H31: =H14/H18 -> -8.401172669 | I31: =IFERROR((H31-J31)/J31,"Missing Info") -> -0.2822508238 | J31: =J14/J18 -> -11.70488654
A32: Profitability
A33: Net Profit Margin | C33: =_xlfn.XLOOKUP(A33,MCD!$A$2:$A$69,MCD!B$2:B$69) -> 0.3172 | D33: =_xlfn.XLOOKUP($A$33,MCD!$A$2:$A$69,MCD!C$2:C$69) -> 0.3322 | E33: =IFERROR((C33-D33)/D33,"Missing Info") -> -0.04515352197 | F33: =D33 -> 0.3322 | G33: =IFERROR((F33-H33)/H33,"Missing Info") -> 0.246996997 | H33: =_xlfn.XLOOKUP($A$33,MCD!$A$2:$A$69,MCD!D$2:D$69) -> 0.2664 | I33: =IFERROR((H33-J33)/J33,"Missing Info") -> -0.1800554017 | J33: =_xlfn.XLOOKUP($A$33,MCD!$A$2:$A$69,MCD!E$2:E$69) -> 0.3249
A34: Gross Profit Margin | C34: =C6/C4 -> 0.5675154321 | D34: =D6/D4 -> 0.5712324469 | E34: =IFERROR((C34-D34)/D34,"Missing Info") -> -0.006507009138 | F34: =D34 -> 0.5712324469 | G34: 0.002640961185 | H34: =H6/H4 -> 0.5697278178 | I34: 0.05171079474 | J34: =J6/J4 -> 0.5417152896
A35: Return On Assets ROA | C35: =C33*C28 -> 0.1489946722 | D35: =D33*D28 -> 0.1508381 | E35: =IFERROR((C35-D35)/D35,"Missing Info") -> -0.01222123463 | F35: =D35 -> 0.1508381 | G35: 0.2318118828 | H35: =H33*H28 -> 0.1224522203 | I35: -0.1259809755 | J35: =J33*J28 -> 0.1401024655
A36: Return On Equity ROE | C36: =C35*C31 -> -2.165917808 | D36: =D35*D31 -> -1.799640204 | E36: =IFERROR((C36-D36)/D36,"Missing Info") -> 0.2035282405 | F36: =D36 -> -1.799640204 | G36: 0.7493596777 | H36: =H35*H31 -> -1.028742246 | I36: -0.3726735652 | J36: =J35*J31 -> -1.639883463
A37: Market Value
A38: EPS (Net Income / Shares Common) | C38: =C9/C19 -> 11.39077435 | D38: =D9/D19 -> 11.5649324 | E38: =IFERROR((C38-D38)/D38,"Missing Info") -> -0.01505915064 | F38: =D38 -> 11.5649324 | G38: =IFERROR((F38-H38)/H38,"Missing Info") -> 0.387904224 | H38: =H9/H19 -> 8.332658843 | I38: =IFERROR((H38-J38)/J38,"Missing Info") -> -0.16973799 | J38: =J9/J19 -> 10.03617984
A39: P/E | C39: =C3/C38 -> 25.44954287 | D39: =D3/D38 -> 25.63871449 | E39: -0.00737835825 | F39: 25.63871449 | G39: -0.1893193906 | H39: =H3/H38 -> 31.62615979 | I39: 0.1840408368 | J39: =J3/J38 -> 26.71036235
A40: Book Value Per Share | C40: =C18/C19 -> -5.258346031 | D40: =D18/D19 -> -6.426328008 | E40: -0.1817495115 | F40: -6.426328008 | G40: -0.2064768378 | H40: =H18/H19 -> -8.098475651 | I40: 0.3232820608 | J40: =J18/J19 -> -6.119992019
A41: Market Capitalization (Stock Price * Shares Common) | C41: =C3*C19 -> 209271.591 | D41: =D3*D19 -> 217134.273 | E41: -0.03621115124 | F41: 217134.273 | G41: 0.111486819 | H41: =H3*H19 -> 195354.789 | I41: -0.03066582084 | J41: =J3*J19 -> 201535.026
A42: Cash Per Share | C42: =C10/C19 -> 1.502978252 | D42: =D10/D19 -> 6.252901816 | E42: -0.7596350789 | F42: 6.252901816 | G42: 0.793976359 | H42: =H10/H19 -> 3.485498449 | I42: -0.4435577734 | J42: =J10/J19 -> 6.263899973
A43: Revenue Per Share | C43: =C4/C19 -> 35.90525003 | D43: =D4/D19 -> 34.81360098 | E43: 0.03135697028 | F43: 34.81360098 | G43: 0.1132002937 | H43: =H4/H19 -> 31.27343855 | I43: 0.01242183813 | J43: =J4/J19 -> 30.88973131
A44: Price to Book Value | C44: =C41/C40 -> -39797.98776 | D44: =D41/D40 -> -33788.23377 | E44: 0.1778652898 | F44: -33788.23377 | G44: 0.4006986461 | H44: =H41/H40 -> -24122.41481 | I44: -0.2674772765 | J44: =J41/J40 -> -32930.60275

Sheet CAVA
A1: Statements | B1: 2024 | C1: 2023 | D1: 2022 | E1: 2021
A2: Revenue | B2: 963.71 | C2: 728.7 | D2: 564.12 | E2: 500.07
A3: Revenue Growth | B3: 0.3225 | C3: 0.2917 | D3: 0.1281 | E3: 100
A4: Cost of Revenue | B4: 532.23 | C4: 400.78 | D4: 337.88 | E4: 298.17
A5: Gross Profit | B5: 431.48 | C5: 327.92 | D5: 226.24 | E5: 201.91
A6: SG&A Expenses | B6: 120.5 | C6: 101.49 | D6: 70.04 | E6: 64.79
A7: Operating Income | B7: 43.12 | C7: 4.72 | D7: -59.77 | E7: -52.75
A8: Interest Expense (Operating) | B8: 100 | C8: 100 | D8: 0.05 | E8: 4.81
A9: Non-operating Income/Expense | B9: 16.79 | C9: 9.32 | D9: 0.87 | E9: 15.48
A10: Non-operating Interest Expenses | B10: -16.47 | C10: -8.85 | D10: 0.05 | E10: 4.81
A11: EBT | B11: 59.91 | C11: 14.05 | D11: -58.89 | E11: -37.27
A12: Income Tax Provision | B12: -70.41 | C12: 0.77 | D12: 0.09 | E12: 0.12
A13: Income after Tax | B13: 130.32 | C13: 13.28 | D13: -58.99 | E13: -37.39
A14: Net Income Common | B14: 130.32 | C14: 13.28 | D14: -58.99 | E14: -37.39
A15: EPS (Basic) | B15: 1.14 | C15: 0.22 | D15: -0.53 | E15: -0.34
A16: EPS (Diluted) | B16: 1.1 | C16: 0.21 | D16: -0.53 | E16: -0.34
A17: Shares (Basic, Weighted) | B17: 114.29 | C17: 60.51 | D17: 1.33 | E17: 0.73
A18: Shares (Diluted, Weighted) | B18: 118.27 | C18: 63.45 | D18: 1.33 | E18: 0.73
A19: Gross Margin | B19: 0.4477 | C19: 0.45 | D19: 0.4011 | E19: 0.4038
A20: EBIT Margin | B20: 0.0447 | C20: 0.0065 | D20: -0.1059 | E20: -0.1055
A21: EBT margin | B21: 0.0622 | C21: 0.0193 | D21: -0.1044 | E21: -0.0745
A22: Net Profit Margin | B22: 0.1352 | C22: 0.0182 | D22: -0.1046 | E22: -0.0748
A23: Free Cash Flow Margin | B23: 0.0549 | C23: -0.0572 | D23: -0.1739 | E23: -0.1058
A24: EBITDA | B24: 103.47 | C24: 52.16 | D24: -17.04 | E24: -8.31
A25: EBIT | B25: 43.12 | C25: 4.72 | D25: -59.77 | E25: -52.75
A26: Income from Continuous Operations | B26: 130.32 | C26: 13.28 | D26: -58.99 | E26: -37.39
A27: Consolidated Net Income/Loss | B27: 130.32 | C27: 13.28 | D27: -58.99 | E27: -37.39
A28: EPS (Basic, from Continuous Ops) | B28: 1.14 | C28: 0.22 | D28: -44.42 | E28: -51.08
A29: EPS (Basic, Consolidated) | B29: 1.14 | C29: 0.22 | D29: -44.42 | E29: -51.08
A30: EPS (Diluted, from Cont. Ops) | B30: 1.1 | C30: 0.21 | D30: -44.42 | E30: -51.08
A31: Shares (Diluted, Average) | B31: 118.27 | C31: 63.45 | D31: 100 | E31: 100
A32: EPS (Diluted, Consolidated) | B32: 1.1 | C32: 0.21 | D32: -44.42 | E32: -51.08
A33: EBITDA Margin | B33: 0.1074 | C33: 0.0716 | D33: -0.0302 | E33: -0.0166
A34: Operating Cash Flow Margin | B34: 0.1671 | C34: 0.1333 | D34: 0.0107 | E34: 0.0068
A35: Cash and Short Term Investments | B35: 385.78 | C35: 369.27 | D35: 366.12 | E35: 367.16
A36: Receivables | B36: 16.54 | C36: 15.92 | D36: 13 | E36: 13.2
A37: Inventory | B37: 7.99 | C37: 7.28 | D37: 7.6 | E37: 7.33
A38: Other current assets | B38: 100 | C38: 100 | D38: 100 | E38: 100
A39: Total current assets | B39: 418.54 | C39: 403.02 | D39: 394.15 | E39: 393.26
A40: Property, Plant, Equpment (Net) | B40: 418.03 | C40: 390.58 | D40: 372.9 | E40: 363.22
A41: Long-Term Investments | B41: 95.61 | C41: 79.92 | D41: 100 | E41: 100
A42: Goodwill and Intangible Assets (Total) | B42: 3.54 | C42: 3.52 | D42: 3.3 | E42: 3.3
A43: Long Term Assets (Tax, Deferred) | B43: 71.56 | C43: 76.92 | D43: 71.54 | E43: 100
A44: Long-term assets (Other) | B44: 12.22 | C44: 6.31 | D44: 5.95 | E44: 5.69
A45: Total non-current assets | B45: 873.1 | C45: 825.34 | D45: 775.52 | E45: 686.28
A46: Total Assets | B46: 1291.63 | C46: 1228.36 | D46: 1169.67 | E46: 1079.54
A47: Accounts Payable | B47: 33.62 | C47: 25.98 | D47: 25.57 | E47: 25.34
A48: Accrued Expenses | B48: 73.47 | C48: 63.72 | D48: 69.82 | E48: 67.89
A49: Current Part of Debt | B49: 100 | C49: 100 | D49: 100 | E49: 100
A50: Current Part of Capital Lease | B50: 100 | C50: 100 | D50: 100 | E50: 100
A51: Current Part of Taxes to Pay | B51: 100 | C51: 100 | D51: 100 | E51: 100
A52: Other current liabilities | B52: 100 | C52: 100 | D52: 100 | E52: 100
A53: Total current liabilities | B53: 153.71 | C53: 134.28 | D53: 132.64 | E53: 134.44
A54: Long Term Debt (Total) | B54: 100 | C54: 100 | D54: 100 | E54: 100
A55: Non-current Revenue (Deferred) | B55: 100 | C55: 100 | D55: 100 | E55: 100
A56: Long Term Tax Liability (Deferred) | B56: 100 | C56: 100 | D56: 100 | E56: 0.08
A57: Liabilities (Preferred Stock) | B57: 100 | C57: 100 | D57: 100 | E57: 100
A58: Minority Interests | B58: 100 | C58: 100 | D58: 100 | E58: 100
A59: Non-current Liabilities (Other) | B59: 100 | C59: 100 | D59: 100 | E59: 100
A60: Total non-current liabilities | B60: 387.22 | C60: 367.91 | D60: 341.47 | E60: 328.66
A61: Total liabilities | B61: 540.92 | C61: 502.19 | D61: 474.1 | E61: 463.1
A62: Additional Paid In Capital | B62: 1058.36 | C62: 1052.25 | D62: 1047.28 | E62: 1039.95
A63: Preferred Stock (Total) | B63: 100 | C63: 100 | D63: 100 | E63: 100
A64: Common Stock (Net) | B64: 0.01 | C64: 0.01 | D64: 0.01 | E64: 0.01
A65: Retained Earnings | B65: -273.27 | C65: -291.64 | D65: -317.34 | E65: -395.96
A66: Treasury Stock | B66: 34.38 | C66: 34.38 | D66: 34.38 | E66: 27.56
A67: Shareholders Equity (Other) | B67: 100 | C67: 100 | D67: 100 | E67: 100
A68: Common Equity (Total) | B68: 750.71 | C68: 726.17 | D68: 695.57 | E68: 616.44
A69: Shareholders Equity (Total) | B69: 750.71 | C69: 726.17 | D69: 695.57 | E69: 616.44
A70: Shareholders Equity and Liabilities (Total) | B70: 1291.63 | C70: 1228.36 | D70: 1169.67 | E70: 1079.54
A71: Shares (Common) | B71: 114.52 | C71: 114.22 | D71: 113.66 | E71: 113.18
A72: Shareholders Equity (Tangible) | B72: 747.17 | C72: 722.65 | D72: 692.27 | E72: 613.14
A73: Net Debt | B73: -385.78 | C73: -369.27 | D73: -366.12 | E73: -367.16
A74: Total Debt | B74: 100 | C74: 100 | D74: 100 | E74: 100

Sheet YOY CAVA
A1: =+H48+A1:J44+A1:A1:J45 -> 0 | C1: CAVA | D1: CAVA | E1: % Change YOY | F1: CAVA | G1: % Change YOY | H1: CAVA | I1: % Change YOY | J1: CAVA
A2: Year ending: | C2: 2024 | D2: 2023 | F2: 2023 | H2: 2022 | J2: 2021
A3: Stock Price | C3: 170.25 | D3: 101.5 | E3: =IFERROR((C3-D3)/D3,"Missing Info") -> 0.6773399015 | F3: 101.5 | G3: =IFERROR((F3-H3)/H3,"Missing Info") -> 0 | H3: 101.5 | I3: =IFERROR((H3-J3)/J3,"Missing Info") -> 0 | J3: 101.5
A4: Revenue | C4: =_xlfn.XLOOKUP(A4,Table2[Statements],Table2[2024]) -> 963.71 | D4: =_xlfn.XLOOKUP(A4,Table2[Statements],Table2[2023]) -> 728.7 | E4: =IFERROR((C4-D4)/D4,"Missing Info") -> 0.3225058323 | F4: =D4 -> 728.7 | G4: =IFERROR((F4-H4)/H4,"Missing Info") -> 0.2917464369 | H4: =_xlfn.XLOOKUP(A4,Table2[Statements],Table2[2022]) -> 564.12 | I4: =IFERROR((H4-J4)/J4,"Missing Info") -> 0.1280820685 | J4: =_xlfn.XLOOKUP(A4,Table2[Statements],Table2[2021]) -> 500.07
A5: Cost of Revenue | C5: =_xlfn.XLOOKUP(A5,Table2[Statements],Table2[2024]) -> 532.23 | D5: =_xlfn.XLOOKUP(A5,Table2[Statements],Table2[2023]) -> 400.78 | E5: =IFERROR((C5-D5)/D5,"Missing Info") -> 0.3279854284 | F5: =D5 -> 400.78 | G5: =IFERROR((F5-H5)/H5,"Missing Info") -> 0.1861607671 | H5: =_xlfn.XLOOKUP(A5,Table2[Statements],Table2[2022]) -> 337.88 | I5: =IFERROR((H5-J5)/J5,"Missing Info") -> 0.1331790589 | J5: =_xlfn.XLOOKUP(A5,Table2[Statements],Table2[2021]) -> 298.17
A6: Gross Profit | C6: =_xlfn.XLOOKUP(A6,Table2[Statements],Table2[2024]) -> 431.48 | D6: =_xlfn.XLOOKUP(A6,Table2[Statements],Table2[2023]) -> 327.92 | E6: 0.3158087338 | F6: 327.92 | G6: 0.4494342291 | H6: =_xlfn.XLOOKUP(A6,Table2[Statements],Table2[2022]) -> 226.24 | I6: 0.1204992323 | J6: =_xlfn.XLOOKUP(A6,Table2[Statements],Table2[2021]) -> 201.91
A7: SG&A Expenses | C7: =_xlfn.XLOOKUP(A7,Table2[Statements],Table2[2024]) -> 120.5 | D7: =_xlfn.XLOOKUP(A7,Table2[Statements],Table2[2023]) -> 101.49 | E7: 0.1873090945 | F7: 101.49 | G7: 0.4490291262 | H7: =_xlfn.XLOOKUP(A7,Table2[Statements],Table2[2022]) -> 70.04 | I7: 0.08103102331 | J7: =_xlfn.XLOOKUP(A7,Table2[Statements],Table2[2021]) -> 64.79
A8: Operating Income | C8: =_xlfn.XLOOKUP(A8,Table2[Statements],Table2[2024]) -> 43.12 | D8: =_xlfn.XLOOKUP(A8,Table2[Statements],Table2[2023]) -> 4.72 | E8: 8.13559322 | F8: 4.72 | G8: -1.078969383 | H8: =_xlfn.XLOOKUP(A8,Table2[Statements],Table2[2022]) -> -59.77 | I8: 0.1330805687 | J8: =_xlfn.XLOOKUP(A8,Table2[Statements],Table2[2021]) -> -52.75
A9: Net Income Common | C9: =_xlfn.XLOOKUP(A9,Table2[Statements],Table2[2024]) -> 130.32 | D9: =_xlfn.XLOOKUP(A9,Table2[Statements],Table2[2023]) -> 13.28 | E9: 8.813253012 | F9: 13.28 | G9: -1.225122902 | H9: =_xlfn.XLOOKUP(A9,Table2[Statements],Table2[2022]) -> -58.99 | I9: 0.5776945707 | J9: =_xlfn.XLOOKUP(A9,Table2[Statements],Table2[2021]) -> -37.39
A10: Cash and Short Term Investments | C10: =_xlfn.XLOOKUP(A10,Table2[Statements],Table2[2024]) -> 385.78 | D10: =_xlfn.XLOOKUP(A10,Table2[Statements],Table2[2023]) -> 369.27 | E10: 0.04470983291 | F10: 369.27 | G10: 0.00860373648 | H10: =_xlfn.XLOOKUP(A10,Table2[Statements],Table2[2022]) -> 366.12 | I10: -0.002832552566 | J10: =_xlfn.XLOOKUP(A10,Table2[Statements],Table2[2021]) -> 367.16
A11: Receivables | C11: =_xlfn.XLOOKUP(A11,Table2[Statements],Table2[2024]) -> 16.54 | D11: =_xlfn.XLOOKUP(A11,Table2[Statements],Table2[2023]) -> 15.92 | E11: 0.03894472362 | F11: 15.92 | G11: 0.2246153846 | H11: =_xlfn.XLOOKUP(A11,Table2[Statements],Table2[2022]) -> 13 | I11: -0.01515151515 | J11: =_xlfn.XLOOKUP(A11,Table2[Statements],Table2[2021]) -> 13.2
A12: Inventory | C12: =_xlfn.XLOOKUP(A12,Table2[Statements],Table2[2024]) -> 7.99 | D12: =_xlfn.XLOOKUP(A12,Table2[Statements],Table2[2023]) -> 7.28 | E12: 0.09752747253 | F12: 7.28 | G12: -0.04210526316 | H12: =_xlfn.XLOOKUP(A12,Table2[Statements],Table2[2022]) -> 7.6 | I12: 0.03683492497 | J12: =_xlfn.XLOOKUP(A12,Table2[Statements],Table2[2021]) -> 7.33
A13: Total current assets | C13: =_xlfn.XLOOKUP(A13,Table2[Statements],Table2[2024]) -> 418.54 | D13: =_xlfn.XLOOKUP(A13,Table2[Statements],Table2[2023]) -> 403.02 | E13: 0.03850925512 | F13: 403.02 | G13: 0.0225041228 | H13: =_xlfn.XLOOKUP(A13,Table2[Statements],Table2[2022]) -> 394.15 | I13: 0.002263133805 | J13: =_xlfn.XLOOKUP(A13,Table2[Statements],Table2[2021]) -> 393.26
A14: Total Assets | C14: =_xlfn.XLOOKUP(A14,Table2[Statements],Table2[2024]) -> 1291.63 | D14: =_xlfn.XLOOKUP(A14,Table2[Statements],Table2[2023]) -> 1228.36 | E14: 0.05150770133 | F14: 1228.36 | G14: 0.05017654552 | H14: =_xlfn.XLOOKUP(A14,Table2[Statements],Table2[2022]) -> 1169.67 | I14: 0.08348926395 | J14: =_xlfn.XLOOKUP(A14,Table2[Statements],Table2[2021]) -> 1079.54
A15: Total current liabilities | C15: =_xlfn.XLOOKUP(A15,Table2[Statements],Table2[2024]) -> 153.71 | D15: =_xlfn.XLOOKUP(A15,Table2[Statements],Table2[2023]) -> 134.28 | E15: 0.1446976467 | F15: 134.28 | G15: 0.01236429433 | H15: =_xlfn.XLOOKUP(A15,Table2[Statements],Table2[2022]) -> 132.64 | I15: -0.01338887236 | J15: =_xlfn.XLOOKUP(A15,Table2[Statements],Table2[2021]) -> 134.44
A16: Long Term Debt (Total) | C16: =_xlfn.XLOOKUP(A16,Table2[Statements],Table2[2024]) -> 100 | D16: =_xlfn.XLOOKUP(A16,Table2[Statements],Table2[2023]) -> 100 | E16: 0 | F16: 100 | G16: 0 | H16: =_xlfn.XLOOKUP(A16,Table2[Statements],Table2[2022]) -> 100 | I16: 0 | J16: =_xlfn.XLOOKUP(A16,Table2[Statements],Table2[2021]) -> 100
A17: Total liabilities | C17: =_xlfn.XLOOKUP(A17,Table2[Statements],Table2[2024]) -> 540.92 | D17: =_xlfn.XLOOKUP(A17,Table2[Statements],Table2[2023]) -> 502.19 | E17: 0.07712220474 | F17: 502.19 | G17: 0.05924910356 | H17: =_xlfn.XLOOKUP(A17,Table2[Statements],Table2[2022]) -> 474.1 | I17: 0.02375296912 | J17: =_xlfn.XLOOKUP(A17,Table2[Statements],Table2[2021]) -> 463.1
A18: Common Equity (Total) | C18: =_xlfn.XLOOKUP(A18,Table2[Statements],Table2[2024]) -> 750.71 | D18: =_xlfn.XLOOKUP(A18,Table2[Statements],Table2[2023]) -> 726.17 | E18: 0.03379373976 | F18: 726.17 | G18: 0.04399269664 | H18: =_xlfn.XLOOKUP(A18,Table2[Statements],Table2[2022]) -> 695.57 | I18: 0.1283661021 | J18: =_xlfn.XLOOKUP(A18,Table2[Statements],Table2[2021]) -> 616.44
A19: Shares (Common) | C19: =_xlfn.XLOOKUP(A19,Table2[Statements],Table2[2024]) -> 114.52 | D19: =_xlfn.XLOOKUP(A19,Table2[Statements],Table2[2023]) -> 114.22 | E19: 0.002626510243 | F19: =D19 -> 114.22 | G19: 0.004926975189 | H19: =_xlfn.XLOOKUP(A19,Table2[Statements],Table2[2022]) -> 113.66 | I19: 0.004241031984 | J19: =_xlfn.XLOOKUP(A19,Table2[Statements],Table2[2021]) -> 113.18
A20: Financial Ratio's | C20: CAVA | D20: CAVA | E20: % Change YOY | F20: CAVA | G20: % Change YOY | H20: CAVA | I20: % Change YOY | J20: CAVA
A21: Liquidity | C21: 2024 | D21: 2023 | F21: 2023 | H21: 2022 | J21: 2021
A22: Current Ratio | C22: =C13/C15 -> 2.722919784 | D22: =D13/D15 -> 3.001340483 | E22: =IFERROR((C22-D22)/D22,"Missing Info") -> -0.09276544937 | F22: =F13/F15 -> 3.001340483 | G22: =IFERROR((F22-H22)/H22,"Missing Info") -> 0.01001598784 | H22: =H13/H15 -> 2.971577201 | I22: =IFERROR((H22-J22)/J22,"Missing Info") -> 0.01586441276 | J22: =J13/J15 -> 2.92517108
A23: Quick Ratio | C23: =(C14-C12)/C17 -> 2.373068106 | D23: =(D14-D12)/D17 -> 2.431509986 | E23: =IFERROR((C23-D23)/D23,"Missing Info") -> -0.02403522108 | F23: =(F14-F12)/F17 -> 2.431509986 | G23: =IFERROR((F23-H23)/H23,"Missing Info") -> -0.007995314838 | H23: =(H14-H12)/H17 -> 2.451107361 | I23: =IFERROR((H23-J23)/J23,"Missing Info") -> 0.05866184705 | J23: =(J14-J12)/J17 -> 2.315288275
A24: Net Working Capital | C24: =C13-C15 -> 264.83 | D24: =D13-D15 -> 268.74 | E24: =IFERROR((C24-D24)/D24,"Missing Info") -> -0.01454937858 | F24: =F13-F15 -> 268.74 | G24: =IFERROR((F24-H24)/H24,"Missing Info") -> 0.0276471263 | H24: =H13-H15 -> 261.51 | I24: =IFERROR((H24-J24)/J24,"Missing Info") -> 0.01039332355 | J24: =J13-J15 -> 258.82
A25: Asset Management
A26: Accounts Rec. Turnover | C26: =C4/'YOY MCD'!C11 -> 0.404410407 | D26: =D4/'YOY MCD'!D11 -> 0.2928858521 | E26: =IFERROR((C26-D26)/D26,"Missing Info") -> 0.3807782253 | F26: =F4/'YOY MCD'!F11 -> 0.2928858521 | G26: =IFERROR((F26-H26)/H26,"Missing Info") -> 0.09808830953 | H26: =H4/'YOY MCD'!H11 -> 0.2667234043 | I26: =IFERROR((H26-J26)/J26,"Missing Info") -> -0.001314011783 | J26: =J4/'YOY MCD'!J11 -> 0.2670743431
A27: Inventory Turnover | C27: =C4/C12 -> 120.6145181 | D27: =D4/D12 -> 100.0961538 | E27: =IFERROR((C27-D27)/D27,"Missing Info") -> 0.2049865406 | F27: =F4/F12 -> 100.0961538 | G27: =IFERROR((F27-H27)/H27,"Missing Info") -> 0.3485265001 | H27: =H4/H12 -> 74.22631579 | I27: =IFERROR((H27-J27)/J27,"Missing Info") -> 0.08800546871 | J27: =J4/J12 -> 68.22237381
A28: Total Asset Turnover | C28: =C4/C14 -> 0.7461192447 | D28: =D4/D14 -> 0.5932299977 | E28: =IFERROR((C28-D28)/D28,"Missing Info") -> 0.2577233915 | F28: =F4/F14 -> 0.5932299977 | G28: =IFERROR((F28-H28)/H28,"Missing Info") -> 0.2300278867 | H28: =H4/H14 -> 0.4822898766 | I28: =IFERROR((H28-J28)/J28,"Missing Info") -> 0.04115666491 | J28: =J4/J14 -> 0.4632250773
A29: Debt Management
A30: Total Debt to Equity | C30: =C16/C18 -> 0.1332072305 | D30: =D16/D18 -> 0.137708801 | E30: =IFERROR((C30-D30)/D30,"Missing Info") -> -0.03268905436 | F30: =F16/F18 -> 0.137708801 | G30: =IFERROR((F30-H30)/H30,"Missing Info") -> -0.0421388931 | H30: =H16/H18 -> 0.1437669825 | I30: =IFERROR((H30-J30)/J30,"Missing Info") -> -0.1137628132 | J30: =J16/J18 -> 0.1622217896
A31: Equity multiplier | C31: =C14/C18 -> 1.720544551 | D31: =D14/D18 -> 1.691559828 | E31: =IFERROR((C31-D31)/D31,"Missing Info") -> 0.01713490891 | F31: =F14/F18 -> 1.691559828 | G31: =IFERROR((F31-H31)/H31,"Missing Info") -> 0.005923268337 | H31: =H14/H18 -> 1.681599264 | I31: =IFERROR((H31-J31)/J31,"Missing Info") -> -0.03977152283 | J31: =J14/J18 -> 1.751249108
A32: Profitability
A33: Net Profit Margin | C33: =_xlfn.XLOOKUP(A33,MCD!$A$2:$A$69,MCD!B$2:B$69) -> 0.3172 | D33: =_xlfn.XLOOKUP($A$33,MCD!$A$2:$A$69,MCD!C$2:C$69) -> 0.3322 | E33: =IFERROR((C33-D33)/D33,"Missing Info") -> -0.04515352197 | F33: =D33 -> 0.3322 | G33: =IFERROR((F33-H33)/H33,"Missing Info") -> 0.246996997 | H33: =_xlfn.XLOOKUP($A$33,MCD!$A$2:$A$69,MCD!D$2:D$69) -> 0.2664 | I33: =IFERROR((H33-J33)/J33,"Missing Info") -> -0.1800554017 | J33: =_xlfn.XLOOKUP($A$33,MCD!$A$2:$A$69,MCD!E$2:E$69) -> 0.3249
A34: Gross Profit Margin | C34: =C6/C4 -> 0.447728051 | D34: =D6/D4 -> 0.4500068615 | E34: =IFERROR((C34-D34)/D34,"Missing Info") -> -0.005063946262 | F34: =D34 -> 0.4500068615 | G34: 0.1220733324 | H34: =H6/H4 -> 0.4010494221 | I34: -0.006721883443 | J34: =J6/J4 -> 0.4037634731
A35: Return On Assets ROA | C35: =C33*C28 -> 0.2366690244 | D35: =D33*D28 -> 0.1970710052 | E35: =IFERROR((C35-D35)/D35,"Missing Info") -> 0.2009327507 | F35: =D35 -> 0.1970710052 | G35: 0.5338410809 | H35: =H33*H28 -> 0.1284820231 | I35: -0.1463092166 | J35: =J33*J28 -> 0.1505018276
A36: Return On Equity ROE | C36: =C35*C31 -> 0.4071996004 | D36: =D35*D31 -> 0.3333573957 | E36: =IFERROR((C36-D36)/D36,"Missing Info") -> 0.221510624 | F36: =D36 -> 0.3333573957 | G36: 0.5429264332 | H36: =H35*H31 -> 0.2160552755 | I36: -0.1802617991 | J36: =J35*J31 -> 0.2635661914
A37: Market Value
A38: EPS (Net Income / Shares Common) | C38: =C9/C19 -> 1.137967167 | D38: =D9/D19 -> 0.1162668534 | E38: =IFERROR((C38-D38)/D38,"Missing Info") -> 8.787545922 | F38: =D38 -> 0.1162668534 | G38: =IFERROR((F38-H38)/H38,"Missing Info") -> -1.224019165 | H38: =H9/H19 -> -0.5190040472 | I38: =IFERROR((H38-J38)/J38,"Missing Info") -> 0.5710317747 | J38: =J9/J19 -> -0.3303587206
A39: P/E | C39: =C3/C38 -> 149.6088858 | D39: =D3/D38 -> 872.9917169 | E39: -0.8286250798 | F39: 872.9917169 | G39: -5.463903785 | H39: =H3/H38 -> -195.5668757 | I39: -0.3634756368 | J39: =J3/J38 -> -307.2417759
A40: Book Value Per Share | C40: =C18/C19 -> 6.555274188 | D40: =D18/D19 -> 6.357643145 | E40: 0.03108558291 | F40: 6.357643145 | G40: 0.03887418928 | H40: =H18/H19 -> 6.119743093 | I40: 0.1236008749 | J40: =J18/J19 -> 5.446545326
A41: Market Capitalization (Stock Price * Shares Common) | C41: =C3*C19 -> 19497.03 | D41: =D3*D19 -> 11593.33 | E41: 0.6817454519 | F41: 11593.33 | G41: 0.004926975189 | H41: =H3*H19 -> 11536.49 | I41: 0.004241031984 | J41: =J3*J19 -> 11487.77
A42: Cash Per Share | C42: =C10/C19 -> 3.368669228 | D42: =D10/D19 -> 3.232971459 | E42: 0.04197307995 | F42: 3.232971459 | G42: 0.003658734795 | H42: =H10/H19 -> 3.221185993 | I42: -0.007043711942 | J42: =J10/J19 -> 3.244036049
A43: Revenue Per Share | C43: =C4/C19 -> 8.415211317 | D43: =D4/D19 -> 6.379793381 | E43: 0.3190413567 | F43: 6.379793381 | G43: 0.2854132378 | H43: =H4/H19 -> 4.963223649 | I43: 0.1233180408 | J43: =J4/J19 -> 4.418360134
A44: Price to Book Value | C44: =C41/C40 -> 2974.250877 | D44: =D41/D40 -> 1823.526382 | E44: 0.6310435135 | F44: 1823.526382 | G44: -0.03267692512 | H44: =H41/H40 -> 1885.12652 | I44: -0.1062297525 | J44: =J41/J40 -> 2109.184687

Sheet CMG
A1: Statements | B1: 2024 | C1: 2023 | D1: 2022 | E1: 2021
A2: Revenue | B2: 11313.85 | C2: 9871.65 | D2: 8634.65 | E2: 7547.06
A3: Revenue Growth | B3: 0.1461 | C3: 0.1433 | D3: 0.1441 | E3: 0.2611
A4: Cost of Revenue | B4: 8296.16 | C4: 7285.56 | D4: 6572.53 | E4: 5840.05
A5: Gross Profit | B5: 3017.69 | C5: 2586.09 | D5: 2062.12 | E5: 1707.01
A6: SG&A Expenses | B6: 697.48 | C6: 633.58 | D6: 564.19 | E6: 606.85
A7: Operating Income | B7: 1916.33 | C7: 1557.81 | D7: 1160.4 | E7: 804.94
A8: Non-operating Income/Expense | B8: 93.9 | C8: 62.69 | D8: 21.13 | E8: 7.82
A9: Non-operating Interest Expenses | B9: 100 | C9: 100 | D9: 100 | E9: 100
A10: EBT | B10: 2010.23 | C10: 1620.51 | D10: 1181.53 | E10: 812.76
A11: Income Tax Provision | B11: 476.12 | C11: 391.77 | D11: 282.43 | E11: 159.78
A12: Income after Tax | B12: 1534.11 | C12: 1228.74 | D12: 899.1 | E12: 652.98
A13: Net Income Common | B13: 1534.11 | C13: 1228.74 | D13: 899.1 | E13: 652.98
A14: EPS (Basic) | B14: 1.12 | C14: 0.89 | D14: 0.65 | E14: 0.46
A15: EPS (Diluted) | B15: 1.11 | C15: 0.89 | D15: 0.64 | E15: 0.46
A16: Shares (Basic, Weighted) | B16: 1368.34 | C16: 1377.77 | D16: 1392.54 | E16: 1406.6
A17: Shares (Diluted, Weighted) | B17: 1376.56 | C17: 1385.5 | D17: 1403.08 | E17: 1425.55
A18: Gross Margin | B18: 0.2667 | C18: 0.262 | D18: 0.2388 | E18: 0.2262
A19: EBIT Margin | B19: 0.1694 | C19: 0.1578 | D19: 0.1344 | E19: 0.1067
A20: EBT margin | B20: 0.1777 | C20: 0.1642 | D20: 0.1368 | E20: 0.1077
A21: Net Profit Margin | B21: 0.1356 | C21: 0.1245 | D21: 0.1041 | E21: 0.0865
A22: Free Cash Flow Margin | B22: 0.1354 | C22: 0.1239 | D22: 0.0977 | E22: 0.1118
A23: EBITDA | B23: 2251.36 | C23: 1877.21 | D23: 1447.23 | E23: 1059.6
A24: EBIT | B24: 1916.33 | C24: 1557.81 | D24: 1160.4 | E24: 804.94
A25: Income from Continuous Operations | B25: 1534.11 | C25: 1228.74 | D25: 899.1 | E25: 652.98
A26: Consolidated Net Income/Loss | B26: 1534.11 | C26: 1228.74 | D26: 899.1 | E26: 652.98
A27: EPS (Basic, from Continuous Ops) | B27: 1.12 | C27: 0.89 | D27: 0.65 | E27: 0.46
A28: EPS (Basic, Consolidated) | B28: 1.12 | C28: 0.89 | D28: 0.65 | E28: 0.46
A29: EPS (Diluted, from Cont. Ops) | B29: 1.11 | C29: 0.89 | D29: 0.64 | E29: 0.46
A30: Shares (Diluted, Average) | B30: 1376.56 | C30: 1385.5 | D30: 1403.1 | E30: 1425.55
A31: EPS (Diluted, Consolidated) | B31: 1.11 | C31: 0.89 | D31: 0.64 | E31: 0.46
A32: EBITDA Margin | B32: 0.199 | C32: 0.1902 | D32: 0.1676 | E32: 0.1404
A33: Operating Cash Flow Margin | B33: 0.1861 | C33: 0.1807 | D33: 0.1532 | E33: 0.1699
A34: Cash and Short Term Investments | B34: 1422.91 | C34: 1295.45 | D34: 899.14 | E34: 1076.32
A35: Receivables | B35: 211.19 | C35: 168.5 | D35: 154.62 | E35: 193.66
A36: Inventory | B36: 48.94 | C36: 39.31 | D36: 35.67 | E36: 32.83
A37: Other current assets | B37: 100 | C37: 100 | D37: 86 | E37: 79
A38: Total current assets | B38: 1780.59 | C38: 1620.71 | D38: 1175.84 | E38: 1381.56
A39: Property, Plant, Equpment (Net) | B39: 2390.13 | C39: 2170.04 | D39: 1951.15 | E39: 1769.28
A40: Long-Term Investments | B40: 868.02 | C40: 564.49 | D40: 388.06 | E40: 274.31
A41: Goodwill and Intangible Assets (Total) | B41: 21.94 | C41: 21.94 | D41: 21.94 | E41: 21.94
A42: Long-term assets (Other) | B42: 143.57 | C42: 88.64 | D42: 88.12 | E42: 87.57
A43: Total non-current assets | B43: 7423.79 | C43: 6423.65 | D43: 5751.67 | E43: 5271.39
A44: Total Assets | B44: 9204.37 | C44: 8044.36 | D44: 6927.5 | E44: 6652.96
A45: Accounts Payable | B45: 210.69 | C45: 197.65 | D45: 184.57 | E45: 163.16
A46: Accrued Expenses | B46: 179.75 | C46: 147.69 | D46: 147.54 | E46: 173.05
A47: Current Part of Debt | B47: 100 | C47: 100 | D47: 236 | E47: 219
A48: Current Part of Taxes to Pay | B48: 100 | C48: 100 | D48: 100 | E48: 100
A49: Current Revenue (Deferred) | B49: 238.58 | C49: 209.68 | D49: 183.07 | E49: 156.35
A50: Other current liabilities | B50: 100 | C50: 100 | D50: 465 | E50: 460
A51: Total current liabilities | B51: 1168.77 | C51: 1030.63 | D51: 921.88 | E51: 873.68
A52: Long Term Debt (Total) | B52: 100 | C52: 100 | D52: 3495 | E52: 3302
A53: Non-current Revenue (Deferred) | B53: 100 | C53: 100 | D53: 100 | E53: 100
A54: Long Term Tax Liability (Deferred) | B54: 46.21 | C54: 89.11 | D54: 98.62 | E54: 141.76
A55: Non-current Liabilities (Other) | B55: 71.07 | C55: 58.87 | D55: 43.82 | E55: 38.54
A56: Total non-current liabilities | B56: 4380.06 | C56: 3951.53 | D56: 3637.6 | E56: 3481.9
A57: Total liabilities | B57: 5548.83 | C57: 4982.15 | D57: 4559.48 | E57: 4355.58
A58: Additional Paid In Capital | B58: 2078.01 | C58: 1937.79 | D58: 1829.3 | E58: 1729.31
A59: Common Stock (Net) | B59: 13.59 | C59: 18.74 | D59: 0.37 | E59: 0.37
A60: Retained Earnings | B60: 1574.23 | C60: 6056.98 | D60: 4828.25 | E60: 3929.15
A61: Treasury Stock | B61: 100 | C61: 4944.66 | D61: 4282.01 | E61: 3356.1
A62: Common Equity (Total) | B62: 3655.55 | C62: 3062.21 | D62: 2368.02 | E62: 2297.37
A63: Shareholders Equity (Total) | B63: 3655.55 | C63: 3062.21 | D63: 2368.02 | E63: 2297.37
A64: Shareholders Equity and Liabilities (Total) | B64: 9204.37 | C64: 8044.36 | D64: 6927.5 | E64: 6652.96
A65: Shares (Common) | B65: 1358.75 | C65: 1371.3 | D65: 1381.35 | E65: 1404
A66: Shareholders Equity (Tangible) | B66: 3633.61 | C66: 3040.27 | D66: 2346.08 | E66: 2275.43
A67: Net Debt | B67: -1422.91 | C67: -1295.45 | D67: 2831.86 | E67: 2444.68
A68: Total Debt | B68: 100 | C68: 100 | D68: 3731 | E68: 3521

Sheet YOY CMG
A1: =+H48+A1:J44+A1:A1:J45 -> 0 | C1: CMG | D1: CMG | E1: % Change YOY | F1: CMG | G1: % Change YOY | H1: CMG | I1: % Change YOY | J1: CMG
A2: Year ending: | C2: 2024 | D2: 2023 | F2: 2023 | H2: 2022 | J2: 2021
A3: Stock Price | C3: 68.55 | D3: 46.8 | E3: =IFERROR((C3-D3)/D3,"Missing Info") -> 0.4647435897 | F3: 46.8 | G3: =IFERROR((F3-H3)/H3,"Missing Info") -> 0.3337133086 | H3: 35.09 | I3: =IFERROR((H3-J3)/J3,"Missing Info") -> -0.104161348 | J3: 39.17
A4: Revenue | C4: =_xlfn.XLOOKUP(A4,Table3[Statements],Table3[2024]) -> 11313.85 | D4: =_xlfn.XLOOKUP(A4,Table3[Statements],Table3[2023]) -> 9871.65 | E4: =IFERROR((C4-D4)/D4,"Missing Info") -> 0.146095131 | F4: =D4 -> 9871.65 | G4: =IFERROR((F4-H4)/H4,"Missing Info") -> 0.1432600047 | H4: =_xlfn.XLOOKUP(A4,Table3[Statements],Table3[2022]) -> 8634.65 | I4: =IFERROR((H4-J4)/J4,"Missing Info") -> 0.1441077718 | J4: =_xlfn.XLOOKUP(A4,Table3[Statements],Table3[2021]) -> 7547.06
A5: Cost of Revenue | C5: =_xlfn.XLOOKUP(A5,Table3[Statements],Table3[2024]) -> 8296.16 | D5: =_xlfn.XLOOKUP(A5,Table3[Statements],Table3[2023]) -> 7285.56 | E5: =IFERROR((C5-D5)/D5,"Missing Info") -> 0.1387127414 | F5: =D5 -> 7285.56 | G5: =IFERROR((F5-H5)/H5,"Missing Info") -> 0.108486382 | H5: =_xlfn.XLOOKUP(A5,Table3[Statements],Table3[2022]) -> 6572.53 | I5: =IFERROR((H5-J5)/J5,"Missing Info") -> 0.1254235837 | J5: =_xlfn.XLOOKUP(A5,Table3[Statements],Table3[2021]) -> 5840.05
A6: Gross Profit | C6: =_xlfn.XLOOKUP(A6,Table3[Statements],Table3[2024]) -> 3017.69 | D6: =_xlfn.XLOOKUP(A6,Table3[Statements],Table3[2023]) -> 2586.09 | E6: 0.1668928769 | F6: 2586.09 | G6: 0.2540928753 | H6: =_xlfn.XLOOKUP(A6,Table3[Statements],Table3[2022]) -> 2062.12 | I6: 0.2080304158 | J6: =_xlfn.XLOOKUP(A6,Table3[Statements],Table3[2021]) -> 1707.01
A7: SG&A Expenses | C7: =_xlfn.XLOOKUP(A7,Table3[Statements],Table3[2024]) -> 697.48 | D7: =_xlfn.XLOOKUP(A7,Table3[Statements],Table3[2023]) -> 633.58 | E7: 0.1008554563 | F7: 633.58 | G7: 0.1229904819 | H7: =_xlfn.XLOOKUP(A7,Table3[Statements],Table3[2022]) -> 564.19 | I7: -0.07029743759 | J7: =_xlfn.XLOOKUP(A7,Table3[Statements],Table3[2021]) -> 606.85
A8: Operating Income | C8: =_xlfn.XLOOKUP(A8,Table3[Statements],Table3[2024]) -> 1916.33 | D8: =_xlfn.XLOOKUP(A8,Table3[Statements],Table3[2023]) -> 1557.81 | E8: 0.230143599 | F8: 1557.81 | G8: 0.3424767322 | H8: =_xlfn.XLOOKUP(A8,Table3[Statements],Table3[2022]) -> 1160.4 | I8: 0.4415981315 | J8: =_xlfn.XLOOKUP(A8,Table3[Statements],Table3[2021]) -> 804.94
A9: Net Income Common | C9: =_xlfn.XLOOKUP(A9,Table3[Statements],Table3[2024]) -> 1534.11 | D9: =_xlfn.XLOOKUP(A9,Table3[Statements],Table3[2023]) -> 1228.74 | E9: 0.2485228771 | F9: 1228.74 | G9: 0.3666333 | H9: =_xlfn.XLOOKUP(A9,Table3[Statements],Table3[2022]) -> 899.1 | I9: 0.3769181292 | J9: =_xlfn.XLOOKUP(A9,Table3[Statements],Table3[2021]) -> 652.98
A10: Cash and Short Term Investments | C10: =_xlfn.XLOOKUP(A10,Table3[Statements],Table3[2024]) -> 1422.91 | D10: =_xlfn.XLOOKUP(A10,Table3[Statements],Table3[2023]) -> 1295.45 | E10: 0.09839052067 | F10: 1295.45 | G10: 0.4407656205 | H10: =_xlfn.XLOOKUP(A10,Table3[Statements],Table3[2022]) -> 899.14 | I10: -0.1646164709 | J10: =_xlfn.XLOOKUP(A10,Table3[Statements],Table3[2021]) -> 1076.32
A11: Receivables | C11: =_xlfn.XLOOKUP(A11,Table3[Statements],Table3[2024]) -> 211.19 | D11: =_xlfn.XLOOKUP(A11,Table3[Statements],Table3[2023]) -> 168.5 | E11: 0.2533531157 | F11: 168.5 | G11: 0.08976846462 | H11: =_xlfn.XLOOKUP(A11,Table3[Statements],Table3[2022]) -> 154.62 | I11: -0.2015904162 | J11: =_xlfn.XLOOKUP(A11,Table3[Statements],Table3[2021]) -> 193.66
A12: Inventory | C12: =_xlfn.XLOOKUP(A12,Table3[Statements],Table3[2024]) -> 48.94 | D12: =_xlfn.XLOOKUP(A12,Table3[Statements],Table3[2023]) -> 39.31 | E12: 0.2449758331 | F12: 39.31 | G12: 0.1020465377 | H12: =_xlfn.XLOOKUP(A12,Table3[Statements],Table3[2022]) -> 35.67 | I12: 0.08650624429 | J12: =_xlfn.XLOOKUP(A12,Table3[Statements],Table3[2021]) -> 32.83
A13: Total current assets | C13: =_xlfn.XLOOKUP(A13,Table3[Statements],Table3[2024]) -> 1780.59 | D13: =_xlfn.XLOOKUP(A13,Table3[Statements],Table3[2023]) -> 1620.71 | E13: 0.09864812335 | F13: 1620.71 | G13: 0.3783422915 | H13: =_xlfn.XLOOKUP(A13,Table3[Statements],Table3[2022]) -> 1175.84 | I13: -0.1489041374 | J13: =_xlfn.XLOOKUP(A13,Table3[Statements],Table3[2021]) -> 1381.56
A14: Total Assets | C14: =_xlfn.XLOOKUP(A14,Table3[Statements],Table3[2024]) -> 9204.37 | D14: =_xlfn.XLOOKUP(A14,Table3[Statements],Table3[2023]) -> 8044.36 | E14: 0.1442016518 | F14: 8044.36 | G14: 0.1612212198 | H14: =_xlfn.XLOOKUP(A14,Table3[Statements],Table3[2022]) -> 6927.5 | I14: 0.04126584257 | J14: =_xlfn.XLOOKUP(A14,Table3[Statements],Table3[2021]) -> 6652.96
A15: Total current liabilities | C15: =_xlfn.XLOOKUP(A15,Table3[Statements],Table3[2024]) -> 1168.77 | D15: =_xlfn.XLOOKUP(A15,Table3[Statements],Table3[2023]) -> 1030.63 | E15: 0.1340345226 | F15: 1030.63 | G15: 0.1179654619 | H15: =_xlfn.XLOOKUP(A15,Table3[Statements],Table3[2022]) -> 921.88 | I15: 0.05516894057 | J15: =_xlfn.XLOOKUP(A15,Table3[Statements],Table3[2021]) -> 873.68
A16: Long Term Debt (Total) | C16: =_xlfn.XLOOKUP(A16,Table3[Statements],Table3[2024]) -> 100 | D16: =_xlfn.XLOOKUP(A16,Table3[Statements],Table3[2023]) -> 100 | E16: 0 | F16: 100 | G16: -0.9713876967 | H16: =_xlfn.XLOOKUP(A16,Table3[Statements],Table3[2022]) -> 3495 | I16: 0.05844942459 | J16: =_xlfn.XLOOKUP(A16,Table3[Statements],Table3[2021]) -> 3302
A17: Total liabilities | C17: =_xlfn.XLOOKUP(A17,Table3[Statements],Table3[2024]) -> 5548.83 | D17: =_xlfn.XLOOKUP(A17,Table3[Statements],Table3[2023]) -> 4982.15 | E17: 0.1137420592 | F17: 4982.15 | G17: 0.09270136068 | H17: =_xlfn.XLOOKUP(A17,Table3[Statements],Table3[2022]) -> 4559.48 | I17: 0.04681351278 | J17: =_xlfn.XLOOKUP(A17,Table3[Statements],Table3[2021]) -> 4355.58
A18: Common Equity (Total) | C18: =_xlfn.XLOOKUP(A18,Table3[Statements],Table3[2024]) -> 3655.55 | D18: =_xlfn.XLOOKUP(A18,Table3[Statements],Table3[2023]) -> 3062.21 | E18: 0.1937620215 | F18: 3062.21 | G18: 0.2931520849 | H18: =_xlfn.XLOOKUP(A18,Table3[Statements],Table3[2022]) -> 2368.02 | I18: 0.03075255618 | J18: =_xlfn.XLOOKUP(A18,Table3[Statements],Table3[2021]) -> 2297.37
A19: Shares (Common) | C19: =_xlfn.XLOOKUP(A19,Table3[Statements],Table3[2024]) -> 1358.75 | D19: =_xlfn.XLOOKUP(A19,Table3[Statements],Table3[2023]) -> 1371.3 | E19: -0.009151899657 | F19: =_xlfn.XLOOKUP(A19,Table3[Statements],Table3[2023]) -> 1371.3 | G19: -0.007275491367 | H19: =_xlfn.XLOOKUP(A19,Table3[Statements],Table3[2022]) -> 1381.35 | I19: -0.01613247863 | J19: =_xlfn.XLOOKUP(A19,Table3[Statements],Table3[2021]) -> 1404
A20: Financial Ratio's | C20: CMG | D20: CMG | E20: % Change YOY | F20: CMG | G20: % Change YOY | H20: CMG | I20: % Change YOY | J20: CMG
A21: Liquidity | C21: 2024 | D21: 2023 | F21: 2023 | H21: 2022 | J21: 2021
A22: Current Ratio | C22: =C13/C15 -> 1.523473395 | D22: =D13/D15 -> 1.572543008 | E22: =IFERROR((C22-D22)/D22,"Missing Info") -> -0.03120398764 | F22: =F13/F15 -> 1.572543008 | G22: =IFERROR((F22-H22)/H22,"Missing Info") -> 0.2329023914 | H22: =H13/H15 -> 1.27548054 | I22: =IFERROR((H22-J22)/J22,"Missing Info") -> -0.1934032268 | J22: =J13/J15 -> 1.581311235
A23: Quick Ratio | C23: =(C14-C12)/C17 -> 1.64997486 | D23: =(D14-D12)/D17 -> 1.606746084 | E23: =IFERROR((C23-D23)/D23,"Missing Info") -> 0.02690454733 | F23: =(F14-F12)/F17 -> 1.606746084 | G23: =IFERROR((F23-H23)/H23,"Missing Info") -> 0.06298713591 | H23: =(H14-H12)/H17 -> 1.511538597 | I23: =IFERROR((H23-J23)/J23,"Missing Info") -> -0.005513897737 | J23: =(J14-J12)/J17 -> 1.519919276
A24: Net Working Capital | C24: =C13-C15 -> 611.82 | D24: =D13-D15 -> 590.08 | E24: =IFERROR((C24-D24)/D24,"Missing Info") -> 0.03684246204 | F24: =F13-F15 -> 590.08 | G24: =IFERROR((F24-H24)/H24,"Missing Info") -> 1.323515514 | H24: =H13-H15 -> 253.96 | I24: =IFERROR((H24-J24)/J24,"Missing Info") -> -0.4999606206 | J24: =J13-J15 -> 507.88
A25: Asset Management
A26: Accounts Rec. Turnover | C26: =C4/'YOY MCD'!C11 -> 4.747733949 | D26: =D4/'YOY MCD'!D11 -> 3.967704984 | E26: =IFERROR((C26-D26)/D26,"Missing Info") -> 0.1965944968 | F26: =F4/'YOY MCD'!F11 -> 3.967704984 | G26: =IFERROR((F26-H26)/H26,"Missing Info") -> -0.02813709403 | H26: =H4/'YOY MCD'!H11 -> 4.082576832 | I26: =IFERROR((H26-J26)/J26,"Missing Info") -> 0.01287347133 | J26: =J4/'YOY MCD'!J11 -> 4.030687887
A27: Inventory Turnover | C27: =C4/C12 -> 231.177973 | D27: =D4/D12 -> 251.1231239 | E27: =IFERROR((C27-D27)/D27,"Missing Info") -> -0.0794237924 | F27: =F4/F12 -> 251.1231239 | G27: =IFERROR((F27-H27)/H27,"Missing Info") -> 0.03739721113 | H27: =H4/H12 -> 242.0703673 | I27: =IFERROR((H27-J27)/J27,"Missing Info") -> 0.05301536718 | J27: =J4/J12 -> 229.8830338
A28: Total Asset Turnover | C28: =C4/C14 -> 1.229182443 | D28: =D4/D14 -> 1.227151694 | E28: =IFERROR((C28-D28)/D28,"Missing Info") -> 0.001654847433 | F28: =F4/F14 -> 1.227151694 | G28: =IFERROR((F28-H28)/H28,"Missing Info") -> -0.01546752223 | H28: =H4/H14 -> 1.246430891 | I28: =IFERROR((H28-J28)/J28,"Missing Info") -> 0.09876625641 | J28: =J4/J14 -> 1.134391309
A29: Debt Management
A30: Total Debt to Equity | C30: =C16/C18 -> 0.02735566467 | D30: =D16/D18 -> 0.03265615356 | E30: =IFERROR((C30-D30)/D30,"Missing Info") -> -0.1623121008 | F30: =F16/F18 -> 0.03265615356 | G30: =IFERROR((F30-H30)/H30,"Missing Info") -> -0.9778739843 | H30: =H16/H18 -> 1.475916589 | I30: =IFERROR((H30-J30)/J30,"Missing Info") -> 0.0268705309 | J30: =J16/J18 -> 1.43729569
A31: Equity multiplier | C31: =C14/C18 -> 2.517916593 | D31: =D14/D18 -> 2.626978555 | E31: =IFERROR((C31-D31)/D31,"Missing Info") -> -0.04151612198 | F31: =F14/F18 -> 2.626978555 | G31: =IFERROR((F31-H31)/H31,"Missing Info") -> -0.1020226984 | H31: =H14/H18 -> 2.925439819 | I31: =IFERROR((H31-J31)/J31,"Missing Info") -> 0.01019962194 | J31: =J14/J18 -> 2.895902706
A32: Profitability
A33: Net Profit Margin | C33: =_xlfn.XLOOKUP(A33,MCD!$A$2:$A$69,MCD!B$2:B$69) -> 0.3172 | D33: =_xlfn.XLOOKUP($A$33,MCD!$A$2:$A$69,MCD!C$2:C$69) -> 0.3322 | E33: =IFERROR((C33-D33)/D33,"Missing Info") -> -0.04515352197 | F33: =D33 -> 0.3322 | G33: =IFERROR((F33-H33)/H33,"Missing Info") -> 0.246996997 | H33: =_xlfn.XLOOKUP($A$33,MCD!$A$2:$A$69,MCD!D$2:D$69) -> 0.2664 | I33: =IFERROR((H33-J33)/J33,"Missing Info") -> -0.1800554017 | J33: =_xlfn.XLOOKUP($A$33,MCD!$A$2:$A$69,MCD!E$2:E$69) -> 0.3249
A34: Gross Profit Margin | C34: =C6/C4 -> 0.2667252969 | D34: =D6/D4 -> 0.261971403 | E34: =IFERROR((C34-D34)/D34,"Missing Info") -> 0.01814661394 | F34: =D34 -> 0.261971403 | G34: 0.09694458836 | H34: =H6/H4 -> 0.2388191762 | I34: 0.05587117365 | J34: =J6/J4 -> 0.2261821159
A35: Return On Assets ROA | C35: =C33*C28 -> 0.3898966708 | D35: =D33*D28 -> 0.4076597927 | E35: =IFERROR((C35-D35)/D35,"Missing Info") -> -0.04357339673 | F35: =D35 -> 0.4076597927 | G35: 0.2277090432 | H35: =H33*H28 -> 0.3320491895 | I35: -0.09907254322 | J35: =J33*J28 -> 0.3685637361
A36: Return On Equity ROE | C36: =C35*C31 -> 0.9817272968 | D36: =D35*D31 -> 1.070913533 | E36: =IFERROR((C36-D36)/D36,"Missing Info") -> -0.08328052026 | F36: =D36 -> 1.070913533 | G36: 0.1024548538 | H36: =H35*H31 -> 0.9713899207 | I36: -0.08988342377 | J36: =J35*J31 -> 1.067324721
A37: Market Value
A38: EPS (Net Income / Shares Common) | C38: =C9/C19 -> 1.129059798 | D38: =D9/D19 -> 0.8960402538 | E38: =IFERROR((C38-D38)/D38,"Missing Info") -> 0.2600547719 | F38: =D38 -> 0.8960402538 | G38: =IFERROR((F38-H38)/H38,"Missing Info") -> 0.3766490986 | H38: =H9/H19 -> 0.6508850038 | I38: =IFERROR((H38-J38)/J38,"Missing Info") -> 0.3994954598 | J38: =J9/J19 -> 0.4650854701
A39: P/E | C39: =C3/C38 -> 60.71423333 | D39: =D3/D38 -> 52.22979638 | E39: 0.1624443813 | F39: 52.22979638 | G39: -0.03118862316 | H39: =H3/H38 -> 53.91121288 | I39: -0.35988456 | J39: =J3/J38 -> 84.22107875
A40: Book Value Per Share | C40: =C18/C19 -> 2.690377185 | D40: =D18/D19 -> 2.233070809 | E40: 0.2047881215 | F40: 2.233070809 | G40: 0.3026293535 | H40: =H18/H19 -> 1.714279509 | I40: 0.04765380887 | J40: =J18/J19 -> 1.636303419
A41: Market Capitalization (Stock Price * Shares Common) | C41: =C3*C19 -> 93142.3125 | D41: =D3*D19 -> 64176.84 | E41: 0.4513384034 | F41: 64176.84 | G41: 0.324009889 | H41: =H3*H19 -> 48471.5715 | I41: -0.1186134459 | J41: =J3*J19 -> 54994.68
A42: Cash Per Share | C42: =C10/C19 -> 1.047219871 | D42: =D10/D19 -> 0.9446875228 | E42: 0.1085357284 | F42: 0.9446875228 | G42: 0.451324721 | H42: =H10/H19 -> 0.650913961 | I42: -0.1509186848 | J42: =J10/J19 -> 0.7666096866
A43: Revenue Per Share | C43: =C4/C19 -> 8.326660534 | D43: =D4/D19 -> 7.198753008 | E43: 0.1566809591 | F43: 7.198753008 | G43: 0.1516387425 | H43: =H4/H19 -> 6.250877765 | I43: 0.1628677103 | J43: =J4/J19 -> 5.37539886
A44: Price to Book Value | C44: =C41/C40 -> 34620.54058 | D44: =D41/D40 -> 28739.27676 | E44: 0.2046420258 | F44: 28739.27676 | G44: 0.01641336842 | H44: =H41/H40 -> 28275.18572 | I44: -0.1587043863 | J44: =J41/J40 -> 33609.0968

Sheet SHAK
A1: Statements | B1: 2024 | C1: 2023 | D1: 2022 | E1: 2021
A2: Revenue | B2: 1252.61 | C2: 1087.53 | D2: 900.49 | E2: 739.89
A3: Revenue Growth | B3: 0.1518 | C3: 0.2077 | D3: 0.217 | E3: 0.4151
A4: Cost of Revenue | B4: 950.14 | C4: 838.59 | D4: 717.1 | E4: 594.64
A5: Gross Profit | B5: 302.47 | C5: 248.94 | D5: 183.39 | E5: 145.26
A6: SG&A Expenses | B6: 149.05 | C6: 129.54 | D6: 120.01 | E6: 87.2
A7: Operating Income | B7: 3.04 | C7: 5.92 | D7: -26.89 | E7: -15.85
A8: Interest Expense (Operating) | B8: 100 | C8: 100 | D8: 1.52 | E8: 1.58
A9: Non-operating Income/Expense | B9: 11.21 | C9: 11.06 | D9: 2.61 | E9: -1.48
A10: Non-operating Interest Expenses | B10: 2.04 | C10: 1.72 | D10: 1.52 | E10: 1.58
A11: EBT | B11: 14.24 | C11: 16.98 | D11: -24.29 | E11: -17.34
A12: Income Tax Provision | B12: 3.42 | C12: -4.01 | D12: -1.18 | E12: -11.32
A13: Income after Tax | B13: 10.82 | C13: 20.99 | D13: -23.11 | E13: -6.02
A14: Dividends (Preferred) | B14: 100 | C14: 0 | D14: 100 | E14: 0
A15: Non-Controlling Interest | B15: 0.61 | C15: 0.73 | D15: -1.88 | E15: -1.46
A16: Net Income Common | B16: 10.21 | C16: 20.26 | D16: -21.23 | E16: -4.56
A17: EPS (Basic) | B17: 0.26 | C17: 0.5 | D17: -0.61 | E17: -0.22
A18: EPS (Diluted) | B18: 0.24 | C18: 0.47 | D18: -0.61 | E18: -0.22
A19: Shares (Basic, Weighted) | B19: 39.83 | C19: 39.42 | D19: 39.24 | E19: 39.09
A20: Shares (Diluted, Weighted) | B20: 44.2 | C20: 43.9 | D20: 39.24 | E20: 39.09
A21: Gross Margin | B21: 0.2415 | C21: 0.2289 | D21: 0.2037 | E21: 0.1963
A22: EBIT Margin | B22: 0.0024 | C22: 0.0054 | D22: -0.0299 | E22: -0.0214
A23: EBT margin | B23: 0.0114 | C23: 0.0156 | D23: -0.027 | E23: -0.0234
A24: Net Profit Margin | B24: 0.0081 | C24: 0.0186 | D24: -0.0236 | E24: -0.0062
A25: Free Cash Flow Margin | B25: 0.0285 | C25: -0.0129 | D25: -0.0731 | E25: -0.0582
A26: EBITDA | B26: 108.25 | C26: 98.39 | D26: 48.45 | E26: 45.25
A27: EBIT | B27: 3.04 | C27: 5.92 | D27: -26.89 | E27: -15.85
A28: Income from Continuous Operations | B28: 10.82 | C28: 20.99 | D28: -23.11 | E28: -6.02
A29: Consolidated Net Income/Loss | B29: 10.82 | C29: 20.99 | D29: -23.11 | E29: -6.02
A30: EPS (Basic, from Continuous Ops) | B30: 0.27 | C30: 0.53 | D30: -0.59 | E30: -0.15
A31: EPS (Basic, Consolidated) | B31: 0.27 | C31: 0.53 | D31: -0.59 | E31: -0.15
A32: EPS (Diluted, from Cont. Ops) | B32: 0.24 | C32: 0.48 | D32: -0.59 | E32: -0.15
A33: Shares (Diluted, Average) | B33: 44.2 | C33: 43.9 | D33: 39.24 | E33: 39.09
A34: EPS (Diluted, Consolidated) | B34: 0.24 | C34: 0.48 | D34: -0.59 | E34: -0.15
A35: EBITDA Margin | B35: 0.0864 | C35: 0.0905 | D35: 0.0538 | E35: 0.0612
A36: Operating Cash Flow Margin | B36: 0.1366 | C36: 0.1215 | D36: 0.0852 | E36: 0.0789
A37: Operating Cash Flow Margin | B37: 0.0852 | C37: 0.0789 | D37: 0.0714 | E37: 0.1511
A38: Cash and Short Term Investments | B38: 320.71 | C38: 293.21 | D38: 311.23 | E38: 382.41
A39: Receivables | B39: 19.69 | C39: 16.85 | D39: 13.88 | E39: 13.66
A40: Inventory | B40: 6.01 | C40: 5.4 | D40: 4.18 | E40: 3.85
A41: Other current assets | B41: 100 | C41: 100 | D41: 15 | E41: 10
A42: Total current assets | B42: 368.22 | C42: 334.43 | D42: 343.99 | E42: 409.68
A43: Property, Plant, Equpment (Net) | B43: 551.6 | C43: 531 | D43: 467.03 | E43: 389.39
A44: Long-Term Investments | B44: 100 | C44: 100 | D44: 100 | E44: 100
A45: Goodwill and Intangible Assets (Total) | B45: 100 | C45: 100 | D45: 2 | E45: 1
A46: Long Term Assets (Tax, Deferred) | B46: 341.59 | C46: 326.21 | D46: 317.63 | E46: 298.67
A47: Long-term assets (Other) | B47: 10.96 | C47: 15.93 | D47: 15.82 | E47: 12.56
A48: Total non-current assets | B48: 1328.76 | C48: 1271.42 | D48: 1167.96 | E48: 1047.89
A49: Total Assets | B49: 1696.97 | C49: 1605.86 | D49: 1511.95 | E49: 1457.57
A50: Accounts Payable | B50: 23.61 | C50: 22.27 | D50: 20.41 | E50: 19.95
A51: Accrued Expenses | B51: 63.01 | C51: 54.74 | D51: 47.95 | E51: 36.89
A52: Current Part of Debt | B52: 100 | C52: 100 | D52: 45 | E52: 38
A53: Other current liabilities | B53: 19.54 | C53: 17.1 | D53: 19.55 | E53: 14.5
A54: Total current liabilities | B54: 187.31 | C54: 164.07 | D54: 147.72 | E54: 121.5
A55: Long Term Debt (Total) | B55: 246.68 | C55: 245.64 | D55: 244.59 | E55: 243.54
A56: Non-current Revenue (Deferred) | B56: 100 | C56: 100 | D56: 14 | E56: 13
A57: Long Term Tax Liability (Deferred) | B57: 100 | C57: 100 | D57: -301 | E57: -299
A58: Non-current Liabilities (Other) | B58: 274.85 | C58: 262.25 | D58: 255.58 | E58: 256.82
A59: Total non-current liabilities | B59: 1016.03 | C59: 972.42 | D59: 927.4 | E59: 900.47
A60: Total liabilities | B60: 1203.35 | C60: 1136.49 | D60: 1075.11 | E60: 1021.97
A61: Additional Paid In Capital | B61: 442.99 | C61: 426.6 | D61: 415.65 | E61: 405.94
A62: Common Stock (Net) | B62: 0.04 | C62: 0.04 | D62: 0.04 | E62: 0.04
A63: Retained Earnings | B63: 26.98 | C63: 16.78 | D63: -3.49 | E63: 3.55
A64: Common Equity (Total) | B64: 493.63 | C64: 469.37 | D64: 436.84 | E64: 435.6
A65: Shareholders Equity (Total) | B65: 493.63 | C65: 469.37 | D65: 436.84 | E65: 435.6
A66: Shareholders Equity and Liabilities (Total) | B66: 1696.97 | C66: 1605.86 | D66: 1511.95 | E66: 1457.57
A67: Shares (Common) | B67: 42.52 | C67: 42.31 | D67: 42.16 | E67: 42.06
A68: Shareholders Equity (Tangible) | B68: 493.63 | C68: 469.37 | D68: 436.84 | E68: 435.6
A69: Net Debt | B69: -74.03 | C69: -47.58 | D69: -21.64 | E69: -100.86
A70: Total Debt | B70: 246.68 | C70: 245.64 | D70: 289.59 | E70: 281.54

Sheet YOY SHAK
A1: =+H48+A1:J44+A1:A1:J45 -> 0 | C1: MCD | D1: MCD | E1: % Change YOY | F1: MCD | G1: % Change YOY | H1: MCD | I1: % Change YOY | J1: MCD
A2: Year ending: | C2: 2024 | D2: 2023 | F2: 2023 | H2: 2022 | J2: 2021
A3: Stock Price | C3: 144.65 | D3: 102 | E3: =IFERROR((C3-D3)/D3,"Missing Info") -> 0.4181372549 | F3: 102 | G3: =IFERROR((F3-H3)/H3,"Missing Info") -> 0.02 | H3: 100 | I3: =IFERROR((H3-J3)/J3,"Missing Info") -> -0.1682608334 | J3: 120.23
A4: Revenue | C4: =_xlfn.XLOOKUP(A4,Table4[Statements],Table4[2024]) -> 1252.61 | D4: =_xlfn.XLOOKUP(A4,Table4[Statements],Table4[2023]) -> 1087.53 | E4: =IFERROR((C4-D4)/D4,"Missing Info") -> 0.1517935137 | F4: =D4 -> 1087.53 | G4: =IFERROR((F4-H4)/H4,"Missing Info") -> 0.2077091361 | H4: =_xlfn.XLOOKUP(A4,Table4[Statements],Table4[2022]) -> 900.49 | I4: =IFERROR((H4-J4)/J4,"Missing Info") -> 0.2170592926 | J4: =_xlfn.XLOOKUP(A4,Table4[Statements],Table4[2021]) -> 739.89
A5: Cost of Revenue | C5: =_xlfn.XLOOKUP(A5,Table4[Statements],Table4[2024]) -> 950.14 | D5: =_xlfn.XLOOKUP(A5,Table4[Statements],Table4[2023]) -> 838.59 | E5: =IFERROR((C5-D5)/D5,"Missing Info") -> 0.1330209041 | F5: =D5 -> 838.59 | G5: =IFERROR((F5-H5)/H5,"Missing Info") -> 0.1694184911 | H5: =_xlfn.XLOOKUP(A5,Table4[Statements],Table4[2022]) -> 717.1 | I5: =IFERROR((H5-J5)/J5,"Missing Info") -> 0.2059397282 | J5: =_xlfn.XLOOKUP(A5,Table4[Statements],Table4[2021]) -> 594.64
A6: Gross Profit | C6: =_xlfn.XLOOKUP(A6,Table4[Statements],Table4[2024]) -> 302.47 | D6: =_xlfn.XLOOKUP(A6,Table4[Statements],Table4[2023]) -> 248.94 | E6: 0.2150317346 | F6: 248.94 | G6: 0.3574349746 | H6: =_xlfn.XLOOKUP(A6,Table4[Statements],Table4[2022]) -> 183.39 | I6: 0.2624948368 | J6: =_xlfn.XLOOKUP(A6,Table4[Statements],Table4[2021]) -> 145.26
A7: SG&A Expenses | C7: =_xlfn.XLOOKUP(A7,Table4[Statements],Table4[2024]) -> 149.05 | D7: =_xlfn.XLOOKUP(A7,Table4[Statements],Table4[2023]) -> 129.54 | E7: 0.1506098502 | F7: 129.54 | G7: 0.07941004916 | H7: =_xlfn.XLOOKUP(A7,Table4[Statements],Table4[2022]) -> 120.01 | I7: 0.3762614679 | J7: =_xlfn.XLOOKUP(A7,Table4[Statements],Table4[2021]) -> 87.2
A8: Operating Income | C8: =_xlfn.XLOOKUP(A8,Table4[Statements],Table4[2024]) -> 3.04 | D8: =_xlfn.XLOOKUP(A8,Table4[Statements],Table4[2023]) -> 5.92 | E8: -0.4864864865 | F8: 5.92 | G8: -1.220156192 | H8: =_xlfn.XLOOKUP(A8,Table4[Statements],Table4[2022]) -> -26.89 | I8: 0.6965299685 | J8: =_xlfn.XLOOKUP(A8,Table4[Statements],Table4[2021]) -> -15.85
A9: Net Income Common | C9: =_xlfn.XLOOKUP(A9,Table4[Statements],Table4[2024]) -> 10.21 | D9: =_xlfn.XLOOKUP(A9,Table4[Statements],Table4[2023]) -> 20.26 | E9: -0.4960513327 | F9: 20.26 | G9: -1.954309939 | H9: =_xlfn.XLOOKUP(A9,Table4[Statements],Table4[2022]) -> -21.23 | I9: 3.655701754 | J9: =_xlfn.XLOOKUP(A9,Table4[Statements],Table4[2021]) -> -4.56
A10: Cash and Short Term Investments | C10: =_xlfn.XLOOKUP(A10,Table4[Statements],Table4[2024]) -> 320.71 | D10: =_xlfn.XLOOKUP(A10,Table4[Statements],Table4[2023]) -> 293.21 | E10: 0.09378943419 | F10: 293.21 | G10: -0.05789930277 | H10: =_xlfn.XLOOKUP(A10,Table4[Statements],Table4[2022]) -> 311.23 | I10: -0.1861352998 | J10: =_xlfn.XLOOKUP(A10,Table4[Statements],Table4[2021]) -> 382.41
A11: Receivables | C11: =_xlfn.XLOOKUP(A11,Table4[Statements],Table4[2024]) -> 19.69 | D11: =_xlfn.XLOOKUP(A11,Table4[Statements],Table4[2023]) -> 16.85 | E11: 0.1685459941 | F11: 16.85 | G11: 0.2139769452 | H11: =_xlfn.XLOOKUP(A11,Table4[Statements],Table4[2022]) -> 13.88 | I11: 0.01610541728 | J11: =_xlfn.XLOOKUP(A11,Table4[Statements],Table4[2021]) -> 13.66
A12: Inventory | C12: =_xlfn.XLOOKUP(A12,Table4[Statements],Table4[2024]) -> 6.01 | D12: =_xlfn.XLOOKUP(A12,Table4[Statements],Table4[2023]) -> 5.4 | E12: 0.112962963 | F12: 5.4 | G12: 0.2918660287 | H12: =_xlfn.XLOOKUP(A12,Table4[Statements],Table4[2022]) -> 4.18 | I12: 0.08571428571 | J12: =_xlfn.XLOOKUP(A12,Table4[Statements],Table4[2021]) -> 3.85
A13: Total current assets | C13: =_xlfn.XLOOKUP(A13,Table4[Statements],Table4[2024]) -> 368.22 | D13: =_xlfn.XLOOKUP(A13,Table4[Statements],Table4[2023]) -> 334.43 | E13: 0.1010375863 | F13: 334.43 | G13: -0.02779150557 | H13: =_xlfn.XLOOKUP(A13,Table4[Statements],Table4[2022]) -> 343.99 | I13: -0.1603446592 | J13: =_xlfn.XLOOKUP(A13,Table4[Statements],Table4[2021]) -> 409.68
A14: Total Assets | C14: =_xlfn.XLOOKUP(A14,Table4[Statements],Table4[2024]) -> 1696.97 | D14: =_xlfn.XLOOKUP(A14,Table4[Statements],Table4[2023]) -> 1605.86 | E14: 0.05673595457 | F14: 1605.86 | G14: 0.06211184232 | H14: =_xlfn.XLOOKUP(A14,Table4[Statements],Table4[2022]) -> 1511.95 | I14: 0.03730867128 | J14: =_xlfn.XLOOKUP(A14,Table4[Statements],Table4[2021]) -> 1457.57
A15: Total current liabilities | C15: =_xlfn.XLOOKUP(A15,Table4[Statements],Table4[2024]) -> 187.31 | D15: =_xlfn.XLOOKUP(A15,Table4[Statements],Table4[2023]) -> 164.07 | E15: 0.141646858 | F15: 164.07 | G15: 0.1106823721 | H15: =_xlfn.XLOOKUP(A15,Table4[Statements],Table4[2022]) -> 147.72 | I15: 0.2158024691 | J15: =_xlfn.XLOOKUP(A15,Table4[Statements],Table4[2021]) -> 121.5
A16: Long Term Debt (Total) | C16: =_xlfn.XLOOKUP(A16,Table4[Statements],Table4[2024]) -> 246.68 | D16: =_xlfn.XLOOKUP(A16,Table4[Statements],Table4[2023]) -> 245.64 | E16: 0.004233838137 | F16: 245.64 | G16: 0.00429289832 | H16: =_xlfn.XLOOKUP(A16,Table4[Statements],Table4[2022]) -> 244.59 | I16: 0.00431140675 | J16: =_xlfn.XLOOKUP(A16,Table4[Statements],Table4[2021]) -> 243.54
A17: Total liabilities | C17: =_xlfn.XLOOKUP(A17,Table4[Statements],Table4[2024]) -> 1203.35 | D17: =_xlfn.XLOOKUP(A17,Table4[Statements],Table4[2023]) -> 1136.49 | E17: 0.05883025808 | F17: 1136.49 | G17: 0.05709183246 | H17: =_xlfn.XLOOKUP(A17,Table4[Statements],Table4[2022]) -> 1075.11 | I17: 0.05199761245 | J17: =_xlfn.XLOOKUP(A17,Table4[Statements],Table4[2021]) -> 1021.97
A18: Common Equity (Total) | C18: =_xlfn.XLOOKUP(A18,Table4[Statements],Table4[2024]) -> 493.63 | D18: =_xlfn.XLOOKUP(A18,Table4[Statements],Table4[2023]) -> 469.37 | E18: 0.05168630292 | F18: 469.37 | G18: 0.07446662394 | H18: =_xlfn.XLOOKUP(A18,Table4[Statements],Table4[2022]) -> 436.84 | I18: 0.002846648301 | J18: =_xlfn.XLOOKUP(A18,Table4[Statements],Table4[2021]) -> 435.6
A19: Shares (Common) | C19: =_xlfn.XLOOKUP(A19,Table4[Statements],Table4[2024]) -> 42.52 | D19: =_xlfn.XLOOKUP(A19,Table4[Statements],Table4[2023]) -> 42.31 | E19: 0.004963365635 | F19: =D19 -> 42.31 | G19: 0.003557874763 | H19: =_xlfn.XLOOKUP(A19,Table4[Statements],Table4[2022]) -> 42.16 | I19: 0.002377555873 | J19: =_xlfn.XLOOKUP(A19,Table4[Statements],Table4[2021]) -> 42.06
A20: Financial Ratio's | C20: MCD | D20: MCD | E20: % Change YOY | F20: MCD | G20: % Change YOY | H20: MCD | I20: % Change YOY | J20: MCD
A21: Liquidity | C21: 2024 | D21: 2023 | F21: 2023 | H21: 2022 | J21: 2021
A22: Current Ratio | C22: =C13/C15 -> 1.965832043 | D22: =D13/D15 -> 2.038337295 | E22: =IFERROR((C22-D22)/D22,"Missing Info") -> -0.03557078217 | F22: =F13/F15 -> 2.038337295 | G22: =IFERROR((F22-H22)/H22,"Missing Info") -> -0.1246745974 | H22: =H13/H15 -> 2.328662334 | I22: =IFERROR((H22-J22)/J22,"Missing Info") -> -0.309381777 | J22: =J13/J15 -> 3.371851852
A23: Quick Ratio | C23: =(C14-C12)/C17 -> 1.405210454 | D23: =(D14-D12)/D17 -> 1.408248203 | E23: =IFERROR((C23-D23)/D23,"Missing Info") -> -0.002157111683 | F23: =(F14-F12)/F17 -> 1.408248203 | G23: =IFERROR((F23-H23)/H23,"Missing Info") -> 0.00414633884 | H23: =(H14-H12)/H17 -> 1.402433239 | I23: =IFERROR((H23-J23)/J23,"Missing Info") -> -0.01408476346 | J23: =(J14-J12)/J17 -> 1.42246837
A24: Net Working Capital | C24: =C13-C15 -> 180.91 | D24: =D13-D15 -> 170.36 | E24: =IFERROR((C24-D24)/D24,"Missing Info") -> 0.06192768255 | F24: =F13-F15 -> 170.36 | G24: =IFERROR((F24-H24)/H24,"Missing Info") -> -0.1320120243 | H24: =H13-H15 -> 196.27 | I24: =IFERROR((H24-J24)/J24,"Missing Info") -> -0.3189326116 | J24: =J13-J15 -> 288.18
A25: Asset Management
A26: Accounts Rec. Turnover | C26: =C4/'YOY MCD'!C11 -> 0.525644146 | D26: =D4/'YOY MCD'!D11 -> 0.4371101286 | E26: =IFERROR((C26-D26)/D26,"Missing Info") -> 0.2025439623 | F26: =F4/'YOY MCD'!F11 -> 0.4371101286 | G26: =IFERROR((F26-H26)/H26,"Missing Info") -> 0.02664984844 | H26: =H4/'YOY MCD'!H11 -> 0.4257635934 | I26: =IFERROR((H26-J26)/J26,"Missing Info") -> 0.07745712504 | J26: =J4/'YOY MCD'!J11 -> 0.3951559496
A27: Inventory Turnover | C27: =C4/C12 -> 208.4209651 | D27: =D4/D12 -> 201.3944444 | E27: =IFERROR((C27-D27)/D27,"Missing Info") -> 0.03488934679 | F27: =F4/F12 -> 201.3944444 | G27: =IFERROR((F27-H27)/H27,"Missing Info") -> -0.06514366869 | H27: =H4/H12 -> 215.4282297 | I27: =IFERROR((H27-J27)/J27,"Missing Info") -> 0.1209756642 | J27: =J4/J12 -> 192.1792208
A28: Total Asset Turnover | C28: =C4/C14 -> 0.7381450468 | D28: =D4/D14 -> 0.6772259101 | E28: =IFERROR((C28-D28)/D28,"Missing Info") -> 0.08995393671 | F28: =F4/F14 -> 0.6772259101 | G28: =IFERROR((F28-H28)/H28,"Missing Info") -> 0.1370828269 | H28: =H4/H14 -> 0.5955818645 | I28: =IFERROR((H28-J28)/J28,"Missing Info") -> 0.1732855671 | J28: =J4/J14 -> 0.5076188451
A29: Debt Management
A30: Total Debt to Equity | C30: =C16/C18 -> 0.4997265158 | D30: =D16/D18 -> 0.5233397959 | E30: =IFERROR((C30-D30)/D30,"Missing Info") -> -0.04512036018 | F30: =F16/F18 -> 0.5233397959 | G30: =IFERROR((F30-H30)/H30,"Missing Info") -> -0.06531028889 | H30: =H16/H18 -> 0.5599075176 | I30: =IFERROR((H30-J30)/J30,"Missing Info") -> 0.001460600633 | J30: =J16/J18 -> 0.5590909091
A31: Equity multiplier | C31: =C14/C18 -> 3.437736766 | D31: =D14/D18 -> 3.421309415 | E31: =IFERROR((C31-D31)/D31,"Missing Info") -> 0.004801480856 | F31: =F14/F18 -> 3.421309415 | G31: =IFERROR((F31-H31)/H31,"Missing Info") -> -0.01149852526 | H31: =H14/H18 -> 3.461107041 | I31: =IFERROR((H31-J31)/J31,"Missing Info") -> 0.03436420019 | J31: =J14/J18 -> 3.346120294
A32: Profitability
A33: Net Profit Margin | C33: =_xlfn.XLOOKUP(A33,MCD!$A$2:$A$69,MCD!B$2:B$69) -> 0.3172 | D33: =_xlfn.XLOOKUP($A$33,MCD!$A$2:$A$69,MCD!C$2:C$69) -> 0.3322 | E33: =IFERROR((C33-D33)/D33,"Missing Info") -> -0.04515352197 | F33: =D33 -> 0.3322 | G33: =IFERROR((F33-H33)/H33,"Missing Info") -> 0.246996997 | H33: =_xlfn.XLOOKUP($A$33,MCD!$A$2:$A$69,MCD!D$2:D$69) -> 0.2664 | I33: =IFERROR((H33-J33)/J33,"Missing Info") -> -0.1800554017 | J33: =_xlfn.XLOOKUP($A$33,MCD!$A$2:$A$69,MCD!E$2:E$69) -> 0.3249
A34: Gross Profit Margin | C34: =C6/C4 -> 0.2414718069 | D34: =D6/D4 -> 0.2289040302 | E34: =IFERROR((C34-D34)/D34,"Missing Info") -> 0.05490413 | F34: =D34 -> 0.2289040302 | G34: 0.1239750814 | H34: =H6/H4 -> 0.2036557874 | I34: 0.0373322356 | J34: =J6/J4 -> 0.196326481
A35: Return On Assets ROA | C35: =C33*C28 -> 0.2341396088 | D35: =D33*D28 -> 0.2249744473 | E35: =IFERROR((C35-D35)/D35,"Missing Info") -> 0.04073867768 | F35: =D35 -> 0.2249744473 | G35: 0.4179388705 | H35: =H33*H28 -> 0.1586630087 | I35: -0.03797083698 | J35: =J33*J28 -> 0.1649253628
A36: Return On Equity ROE | C36: =C35*C31 -> 0.8049103418 | D36: =D35*D31 -> 0.7697071948 | E36: =IFERROR((C36-D36)/D36,"Missing Info") -> 0.04573576451 | F36: =D36 -> 0.7697071948 | G36: 0.4016346645 | H36: =H35*H31 -> 0.5491496566 | I36: -0.004911474239 | J36: =J35*J31 -> 0.5518601033
A37: Market Value
A38: EPS (Net Income / Shares Common) | C38: =C9/C19 -> 0.2401222954 | D38: =D9/D19 -> 0.4788466084 | E38: =IFERROR((C38-D38)/D38,"Missing Info") -> -0.4985402607 | F38: =D38 -> 0.4788466084 | G38: =IFERROR((F38-H38)/H38,"Missing Info") -> -1.950926661 | H38: =H9/H19 -> -0.5035578748 | I38: =IFERROR((H38-J38)/J38,"Missing Info") -> 3.644658819 | J38: =J9/J19 -> -0.1084165478
A39: P/E | C39: =C3/C38 -> 602.4013712 | D39: =D3/D38 -> 213.011846 | E39: 1.828018171 | F39: 213.011846 | G39: -2.072637925 | H39: =H3/H38 -> -198.5869053 | I39: -0.8209256699 | J39: =J3/J38 -> -1108.963553
A40: Book Value Per Share | C40: =C18/C19 -> 11.6093603 | D40: =D18/D19 -> 11.09359489 | E40: 0.0464921796 | F40: 11.09359489 | G40: 0.07065735914 | H40: =H18/H19 -> 10.36148008 | I40: 0.0004679797806 | J40: =J18/J19 -> 10.35663338
A41: Market Capitalization (Stock Price * Shares Common) | C41: =C3*C19 -> 6150.518 | D41: =D3*D19 -> 4315.62 | E41: 0.4251759886 | F41: 4315.62 | G41: 0.02362903226 | H41: =H3*H19 -> 4216 | I41: -0.1662833271 | J41: =J3*J19 -> 5056.8738
A42: Cash Per Share | C42: =C10/C19 -> 7.542568203 | D42: =D10/D19 -> 6.93004018 | E42: 0.08838736973 | F42: 6.93004018 | G42: -0.06123929578 | H42: =H10/H19 -> 7.38211575 | I42: -0.1880657189 | J42: =J10/J19 -> 9.092011412
A43: Revenue Per Share | C43: =C4/C19 -> 29.45931326 | D43: =D4/D19 -> 25.70385252 | E43: 0.1461049757 | F43: 25.70385252 | G43: 0.2034274918 | H43: =H4/H19 -> 21.35887097 | I43: 0.2141725296 | J43: =J4/J19 -> 17.59129815
A44: Price to Book Value | C44: =C41/C40 -> 529.7895698 | D44: =D41/D40 -> 389.0190728 | E44: 0.3618601423 | F44: 389.0190728 | G44: -0.04392472202 | H44: =H41/H40 -> 406.8916766 | I44: -0.1666733071 | J44: =J41/J40 -> 488.2739027

Sheet YUM
A1: Statements | B1: 2024 | C1: 2023 | D1: 2022 | E1: 2021
A2: Revenue | B2: 7549 | C2: 7076 | D2: 6842 | E2: 6584
A3: Revenue Growth | B3: 0.0668 | C3: 0.0342 | D3: 0.0392 | E3: 0.1649
A4: Cost of Revenue | B4: 2120 | C4: 1774 | D4: 1745 | E4: 1725
A5: Gross Profit | B5: 5429 | C5: 5302 | D5: 5097 | E5: 4859
A6: R&D Expenses | B6: 100 | C6: 100 | D6: 100 | E6: 100
A7: SG&A Expenses | B7: 2892 | C7: 2876 | D7: 2807 | E7: 2636
A8: Operating Income | B8: 2403 | C8: 2318 | D8: 2187 | E8: 2139
A9: Interest Expense (Operating) | B9: 100 | C9: 100 | D9: 537 | E9: 522
A10: Non-operating Income/Expense | B10: -503 | C10: -500 | D10: -525 | E10: -465
A11: Non-operating Interest Expenses | B11: 489 | C11: 513 | D11: 527 | E11: 544
A12: EBT | B12: 1900 | C12: 1818 | D12: 1662 | E12: 1674
A13: Income Tax Provision | B13: 414 | C13: 221 | D13: 337 | E13: 99
A14: Income after Tax | B14: 1486 | C14: 1597 | D14: 1325 | E14: 1575
A15: Net Income Common | B15: 1486 | C15: 1597 | D15: 1325 | E15: 1575
A16: EPS (Basic) | B16: 5.28 | C16: 5.68 | D16: 4.63 | E16: 5.3
A17: EPS (Diluted) | B17: 5.22 | C17: 5.59 | D17: 4.57 | E17: 5.21
A18: Shares (Basic, Weighted) | B18: 282 | C18: 281 | D18: 286 | E18: 297
A19: Shares (Diluted, Weighted) | B19: 285 | C19: 285 | D19: 290 | E19: 302
A20: Gross Margin | B20: 0.7192 | C20: 0.7493 | D20: 0.745 | E20: 0.738
A21: EBIT Margin | B21: 0.3183 | C21: 0.3276 | D21: 0.3196 | E21: 0.3249
A22: EBT margin | B22: 0.2517 | C22: 0.2569 | D22: 0.2429 | E22: 0.2543
A23: Net Profit Margin | B23: 0.1968 | C23: 0.2257 | D23: 0.1937 | E23: 0.2392
A24: Free Cash Flow Margin | B24: 0.1897 | C24: 0.1863 | D24: 0.1678 | E24: 0.2242
A25: EBITDA | B25: 2578 | C25: 2471 | D25: 2333 | E25: 2303
A26: EBIT | B26: 2403 | C26: 2318 | D26: 2187 | E26: 2139
A27: Income from Continuous Operations | B27: 1486 | C27: 1597 | D27: 1325 | E27: 1575
A28: Income from Discontinued Operations | B28: 100 | C28: 100 | D28: 100 | E28: 100
A29: Consolidated Net Income/Loss | B29: 1486 | C29: 1597 | D29: 1325 | E29: 1575
A30: EPS (Basic, from Continuous Ops) | B30: 5.27 | C30: 5.68 | D30: 4.63 | E30: 5.3
A31: EPS (Basic, from Discontinued Ops) | B31: 100 | C31: 100 | D31: 100 | E31: 100
A32: EPS (Basic, Consolidated) | B32: 5.27 | C32: 5.68 | D32: 4.63 | E32: 5.3
A33: EPS (Diluted, from Cont. Ops) | B33: 5.21 | C33: 5.6 | D33: 4.57 | E33: 5.22
A34: EPS (Diluted, from Disc. Ops) | B34: 100 | C34: 100 | D34: 100 | E34: 100
A35: Shares (Diluted, Average) | B35: 285 | C35: 285 | D35: 290 | E35: 302
A36: EPS (Diluted, Consolidated) | B36: 5.21 | C36: 5.6 | D36: 4.57 | E36: 5.22
A37: EBITDA Margin | B37: 0.3415 | C37: 0.3492 | D37: 0.341 | E37: 0.3498
A38: Operating Cash Flow Margin | B38: 0.2237 | C38: 0.2265 | D38: 0.2086 | E38: 0.2591
A39: Cash and Short Term Investments | B39: 616 | C39: 512 | D39: 367 | E39: 486
A40: Receivables | B40: 775 | C40: 737 | D40: 648 | E40: 596
A41: Inventory | B41: 100 | C41: 100 | D41: 100 | E41: 100
A42: Other current assets | B42: 100 | C42: 100 | D42: 342 | E42: 150
A43: Total current assets | B43: 1871 | C43: 1609 | D43: 1609 | E43: 1532
A44: Property, Plant, Equpment (Net) | B44: 1304 | C44: 1197 | D44: 1171 | E44: 1207
A45: Long-Term Investments | B45: 100 | C45: 100 | D45: 274 | E45: 277
A46: Goodwill and Intangible Assets (Total) | B46: 1152 | C46: 1019 | D46: 992 | E46: 1016
A47: Long Term Assets (Tax, Deferred) | B47: 1071 | C47: 1045 | D47: 750 | E47: 724
A48: Long-term assets (Other) | B48: 1329 | C48: 1361 | D48: 1324 | E48: 1487
A49: Total non-current assets | B49: 4856 | C49: 4622 | D49: 4237 | E49: 4434
A50: Total Assets | B50: 6727 | C50: 6231 | D50: 5846 | E50: 5966
A51: Accounts Payable | B51: 1211 | C51: 1169 | D51: 1251 | E51: 1334
A52: Current Part of Debt | B52: 27 | C52: 53 | D52: 398 | E52: 68
A53: Current Part of Taxes to Pay | B53: 31 | C53: 55 | D53: 16 | E53: 13
A54: Other current liabilities | B54: 100 | C54: 100 | D54: 929 | E54: 1019
A55: Total current liabilities | B55: 1269 | C55: 1277 | D55: 1665 | E55: 1415
A56: Long Term Debt (Total) | B56: 11306 | C56: 11142 | D56: 11453 | E56: 11178
A57: Long Term Tax Liability (Deferred) | B57: 100 | C57: 100 | D57: -750 | E57: -724
A58: Minority Interests | B58: 100 | C58: 100 | D58: 100 | E58: 100
A59: Non-current Liabilities (Other) | B59: 1800 | C59: 1670 | D59: 1604 | E59: 1746
A60: Total non-current liabilities | B60: 13106 | C60: 12812 | D60: 13057 | E60: 12924
A61: Total liabilities | B61: 14375 | C61: 14089 | D61: 14722 | E61: 14339
A62: Common Stock (Net) | B62: 0 | C62: 60 | D62: 0 | E62: 100
A63: Retained Earnings | B63: -7256 | C63: -7616 | D63: -8507 | E63: -8048
A64: Common Equity (Total) | B64: -7648 | C64: -7858 | D64: -8876 | E64: -8373
A65: Shareholders Equity (Total) | B65: -7648 | C65: -7858 | D65: -8876 | E65: -8373
A66: Shareholders Equity and Liabilities (Total) | B66: 6727 | C66: 6231 | D66: 5846 | E66: 5966
A67: Shares (Common) | B67: 279 | C67: 281 | D67: 280 | E67: 289
A68: Shareholders Equity (Tangible) | B68: -8800 | C68: -8877 | D68: -9868 | E68: -9389
A69: Net Debt | B69: 10717 | C69: 10683 | D69: 11484 | E69: 10760
A70: Total Debt | B70: 11333 | C70: 11195 | D70: 11851 | E70: 11246

Sheet YOY Yum
A1: =+H48+A1:J44+A1:A1:J45 -> 0 | C1: MCD | D1: MCD | E1: % Change YOY | F1: MCD | G1: % Change YOY | H1: MCD | I1: % Change YOY | J1: MCD
A2: Year ending: | C2: 2024 | D2: 2023 | F2: 2023 | H2: 2022 | J2: 2021
A3: Stock Price | C3: 137.77 | D3: 134.9 | E3: =IFERROR((C3-D3)/D3,"Missing Info") -> 0.02127501853 | F3: 134.9 | G3: =IFERROR((F3-H3)/H3,"Missing Info") -> 0.04849992228 | H3: 128.66 | I3: =IFERROR((H3-J3)/J3,"Missing Info") -> -0.07438848921 | J3: 139
A4: Revenue | C4: =_xlfn.XLOOKUP(A4,Table5[Statements],Table5[2024]) -> 7549 | D4: =_xlfn.XLOOKUP(A4,Table5[Statements],Table5[2023]) -> 7076 | E4: =IFERROR((C4-D4)/D4,"Missing Info") -> 0.06684567552 | F4: =D4 -> 7076 | G4: =IFERROR((F4-H4)/H4,"Missing Info") -> 0.03420052616 | H4: =_xlfn.XLOOKUP(A4,Table5[Statements],Table5[2022]) -> 6842 | I4: =IFERROR((H4-J4)/J4,"Missing Info") -> 0.03918590522 | J4: =_xlfn.XLOOKUP(A4,Table5[Statements],Table5[2021]) -> 6584
A5: Cost of Revenue | C5: =_xlfn.XLOOKUP(A5,Table5[Statements],Table5[2024]) -> 2120 | D5: =_xlfn.XLOOKUP(A5,Table5[Statements],Table5[2023]) -> 1774 | E5: =IFERROR((C5-D5)/D5,"Missing Info") -> 0.1950394589 | F5: =D5 -> 1774 | G5: =IFERROR((F5-H5)/H5,"Missing Info") -> 0.01661891117 | H5: =_xlfn.XLOOKUP(A5,Table5[Statements],Table5[2022]) -> 1745 | I5: =IFERROR((H5-J5)/J5,"Missing Info") -> 0.0115942029 | J5: =_xlfn.XLOOKUP(A5,Table5[Statements],Table5[2021]) -> 1725
A6: Gross Profit | C6: =_xlfn.XLOOKUP(A6,Table5[Statements],Table5[2024]) -> 5429 | D6: =_xlfn.XLOOKUP(A6,Table5[Statements],Table5[2023]) -> 5302 | E6: 0.0239532252 | F6: 5302 | G6: 0.0402197371 | H6: =_xlfn.XLOOKUP(A6,Table5[Statements],Table5[2022]) -> 5097 | I6: 0.04898127187 | J6: =_xlfn.XLOOKUP(A6,Table5[Statements],Table5[2021]) -> 4859
A7: SG&A Expenses | C7: =_xlfn.XLOOKUP(A7,Table5[Statements],Table5[2024]) -> 2892 | D7: =_xlfn.XLOOKUP(A7,Table5[Statements],Table5[2023]) -> 2876 | E7: 0.005563282337 | F7: 2876 | G7: 0.02458140363 | H7: =_xlfn.XLOOKUP(A7,Table5[Statements],Table5[2022]) -> 2807 | I7: 0.06487101669 | J7: =_xlfn.XLOOKUP(A7,Table5[Statements],Table5[2021]) -> 2636
A8: Operating Income | C8: =_xlfn.XLOOKUP(A8,Table5[Statements],Table5[2024]) -> 2403 | D8: =_xlfn.XLOOKUP(A8,Table5[Statements],Table5[2023]) -> 2318 | E8: 0.03666954271 | F8: 2318 | G8: 0.05989940558 | H8: =_xlfn.XLOOKUP(A8,Table5[Statements],Table5[2022]) -> 2187 | I8: 0.02244039271 | J8: =_xlfn.XLOOKUP(A8,Table5[Statements],Table5[2021]) -> 2139
A9: Net Income Common | C9: =_xlfn.XLOOKUP(A9,Table5[Statements],Table5[2024]) -> 1486 | D9: =_xlfn.XLOOKUP(A9,Table5[Statements],Table5[2023]) -> 1597 | E9: -0.06950532248 | F9: 1597 | G9: 0.2052830189 | H9: =_xlfn.XLOOKUP(A9,Table5[Statements],Table5[2022]) -> 1325 | I9: -0.1587301587 | J9: =_xlfn.XLOOKUP(A9,Table5[Statements],Table5[2021]) -> 1575
A10: Cash and Short Term Investments | C10: =_xlfn.XLOOKUP(A10,Table5[Statements],Table5[2024]) -> 616 | D10: =_xlfn.XLOOKUP(A10,Table5[Statements],Table5[2023]) -> 512 | E10: 0.203125 | F10: 512 | G10: 0.3950953678 | H10: =_xlfn.XLOOKUP(A10,Table5[Statements],Table5[2022]) -> 367 | I10: -0.2448559671 | J10: =_xlfn.XLOOKUP(A10,Table5[Statements],Table5[2021]) -> 486
A11: Receivables | C11: =_xlfn.XLOOKUP(A11,Table5[Statements],Table5[2024]) -> 775 | D11: =_xlfn.XLOOKUP(A11,Table5[Statements],Table5[2023]) -> 737 | E11: 0.05156037992 | F11: 737 | G11: 0.137345679 | H11: =_xlfn.XLOOKUP(A11,Table5[Statements],Table5[2022]) -> 648 | I11: 0.08724832215 | J11: =_xlfn.XLOOKUP(A11,Table5[Statements],Table5[2021]) -> 596
A12: Inventory | C12: =_xlfn.XLOOKUP(A12,Table5[Statements],Table5[2024]) -> 100 | D12: =_xlfn.XLOOKUP(A12,Table5[Statements],Table5[2023]) -> 100 | E12: 0 | F12: 100 | G12: 0 | H12: =_xlfn.XLOOKUP(A12,Table5[Statements],Table5[2022]) -> 100 | I12: 0 | J12: =_xlfn.XLOOKUP(A12,Table5[Statements],Table5[2021]) -> 100
A13: Total current assets | C13: =_xlfn.XLOOKUP(A13,Table5[Statements],Table5[2024]) -> 1871 | D13: =_xlfn.XLOOKUP(A13,Table5[Statements],Table5[2023]) -> 1609 | E13: 0.1628340584 | F13: 1609 | G13: 0 | H13: =_xlfn.XLOOKUP(A13,Table5[Statements],Table5[2022]) -> 1609 | I13: 0.05026109661 | J13: =_xlfn.XLOOKUP(A13,Table5[Statements],Table5[2021]) -> 1532
A14: Total Assets | C14: =_xlfn.XLOOKUP(A14,Table5[Statements],Table5[2024]) -> 6727 | D14: =_xlfn.XLOOKUP(A14,Table5[Statements],Table5[2023]) -> 6231 | E14: 0.07960199005 | F14: 6231 | G14: 0.06585699624 | H14: =_xlfn.XLOOKUP(A14,Table5[Statements],Table5[2022]) -> 5846 | I14: -0.02011397922 | J14: =_xlfn.XLOOKUP(A14,Table5[Statements],Table5[2021]) -> 5966
A15: Total current liabilities | C15: =_xlfn.XLOOKUP(A15,Table5[Statements],Table5[2024]) -> 1269 | D15: =_xlfn.XLOOKUP(A15,Table5[Statements],Table5[2023]) -> 1277 | E15: -0.00626468285 | F15: 1277 | G15: -0.233033033 | H15: =_xlfn.XLOOKUP(A15,Table5[Statements],Table5[2022]) -> 1665 | I15: 0.1766784452 | J15: =_xlfn.XLOOKUP(A15,Table5[Statements],Table5[2021]) -> 1415
A16: Long Term Debt (Total) | C16: =_xlfn.XLOOKUP(A16,Table5[Statements],Table5[2024]) -> 11306 | D16: =_xlfn.XLOOKUP(A16,Table5[Statements],Table5[2023]) -> 11142 | E16: 0.01471908095 | F16: 11142 | G16: -0.02715445735 | H16: =_xlfn.XLOOKUP(A16,Table5[Statements],Table5[2022]) -> 11453 | I16: 0.02460189658 | J16: =_xlfn.XLOOKUP(A16,Table5[Statements],Table5[2021]) -> 11178
A17: Total liabilities | C17: =_xlfn.XLOOKUP(A17,Table5[Statements],Table5[2024]) -> 14375 | D17: =_xlfn.XLOOKUP(A17,Table5[Statements],Table5[2023]) -> 14089 | E17: 0.02029952445 | F17: 14089 | G17: -0.04299687542 | H17: =_xlfn.XLOOKUP(A17,Table5[Statements],Table5[2022]) -> 14722 | I17: 0.02671037032 | J17: =_xlfn.XLOOKUP(A17,Table5[Statements],Table5[2021]) -> 14339
A18: Common Equity (Total) | C18: =_xlfn.XLOOKUP(A18,Table5[Statements],Table5[2024]) -> -7648 | D18: =_xlfn.XLOOKUP(A18,Table5[Statements],Table5[2023]) -> -7858 | E18: -0.02672435734 | F18: -7858 | G18: -0.1146913024 | H18: =_xlfn.XLOOKUP(A18,Table5[Statements],Table5[2022]) -> -8876 | I18: 0.06007404753 | J18: =_xlfn.XLOOKUP(A18,Table5[Statements],Table5[2021]) -> -8373
A19: Shares (Common) | C19: =_xlfn.XLOOKUP(A19,Table5[Statements],Table5[2024]) -> 279 | D19: =_xlfn.XLOOKUP(A19,Table5[Statements],Table5[2023]) -> 281 | E19: -0.007117437722 | F19: =D19 -> 281 | G19: 0.003571428571 | H19: =_xlfn.XLOOKUP(A19,Table5[Statements],Table5[2022]) -> 280 | I19: -0.03114186851 | J19: =_xlfn.XLOOKUP(A19,Table5[Statements],Table5[2021]) -> 289
A20: Financial Ratio's | C20: MCD | D20: MCD | E20: % Change YOY | F20: MCD | G20: % Change YOY | H20: MCD | I20: % Change YOY | J20: MCD
A21: Liquidity | C21: 2024 | D21: 2023 | F21: 2023 | H21: 2022 | J21: 2021
A22: Current Ratio | C22: =C13/C15 -> 1.474389283 | D22: =D13/D15 -> 1.259984338 | E22: =IFERROR((C22-D22)/D22,"Missing Info") -> 0.1701647696 | F22: =F13/F15 -> 1.259984338 | G22: =IFERROR((F22-H22)/H22,"Missing Info") -> 0.3038371182 | H22: =H13/H15 -> 0.9663663664 | I22: =IFERROR((H22-J22)/J22,"Missing Info") -> -0.1074357647 | J22: =J13/J15 -> 1.082685512
A23: Quick Ratio | C23: =(C14-C12)/C17 -> 0.4610086957 | D23: =(D14-D12)/D17 -> 0.4351621833 | E23: =IFERROR((C23-D23)/D23,"Missing Info") -> 0.05939512527 | F23: =(F14-F12)/F17 -> 0.4351621833 | G23: =IFERROR((F23-H23)/H23,"Missing Info") -> 0.1149421619 | H23: =(H14-H12)/H17 -> 0.3903002309 | I23: =IFERROR((H23-J23)/J23,"Missing Info") -> -0.04594016169 | J23: =(J14-J12)/J17 -> 0.4090940791
A24: Net Working Capital | C24: =C13-C15 -> 602 | D24: =D13-D15 -> 332 | E24: =IFERROR((C24-D24)/D24,"Missing Info") -> 0.813253012 | F24: =F13-F15 -> 332 | G24: =IFERROR((F24-H24)/H24,"Missing Info") -> -6.928571429 | H24: =H13-H15 -> -56 | I24: =IFERROR((H24-J24)/J24,"Missing Info") -> -1.478632479 | J24: =J13-J15 -> 117
A25: Asset Management
A26: Accounts Rec. Turnover | C26: =C4/'YOY MCD'!C11 -> 3.167855644 | D26: =D4/'YOY MCD'!D11 -> 2.844051447 | E26: =IFERROR((C26-D26)/D26,"Missing Info") -> 0.1138531434 | F26: =F4/'YOY MCD'!F11 -> 2.844051447 | G26: =IFERROR((F26-H26)/H26,"Missing Info") -> -0.1208464177 | H26: =H4/'YOY MCD'!H11 -> 3.23498818 | I26: =IFERROR((H26-J26)/J26,"Missing Info") -> -0.08001338584 | J26: =J4/'YOY MCD'!J11 -> 3.516342662
A27: Inventory Turnover | C27: =C4/C12 -> 75.49 | D27: =D4/D12 -> 70.76 | E27: =IFERROR((C27-D27)/D27,"Missing Info") -> 0.06684567552 | F27: =F4/F12 -> 70.76 | G27: =IFERROR((F27-H27)/H27,"Missing Info") -> 0.03420052616 | H27: =H4/H12 -> 68.42 | I27: =IFERROR((H27-J27)/J27,"Missing Info") -> 0.03918590522 | J27: =J4/J12 -> 65.84
A28: Total Asset Turnover | C28: =C4/C14 -> 1.122194143 | D28: =D4/D14 -> 1.135612261 | E28: =IFERROR((C28-D28)/D28,"Missing Info") -> -0.01181575677 | F28: =F4/F14 -> 1.135612261 | G28: =IFERROR((F28-H28)/H28,"Missing Info") -> -0.02970048532 | H28: =H4/H14 -> 1.170372905 | I28: =IFERROR((H28-J28)/J28,"Missing Info") -> 0.06051712463 | J28: =J4/J14 -> 1.103586993
A29: Debt Management
A30: Total Debt to Equity | C30: =C16/C18 -> -1.478294979 | D30: =D16/D18 -> -1.417918045 | E30: =IFERROR((C30-D30)/D30,"Missing Info") -> 0.04258139882 | F30: =F16/F18 -> -1.417918045 | G30: =IFERROR((F30-H30)/H30,"Missing Info") -> 0.09887719987 | H30: =H16/H18 -> -1.290333484 | I30: =IFERROR((H30-J30)/J30,"Missing Info") -> -0.03346195583 | J30: =J16/J18 -> -1.335005374
A31: Equity multiplier | C31: =C14/C18 -> -0.8795763598 | D31: =D14/D18 -> -0.79294986 | E31: =IFERROR((C31-D31)/D31,"Missing Info") -> 0.1092458731 | F31: =F14/F18 -> -0.79294986 | G31: =IFERROR((F31-H31)/H31,"Missing Info") -> 0.2039382411 | H31: =H14/H18 -> -0.6586300135 | I31: =IFERROR((H31-J31)/J31,"Missing Info") -> -0.07564379765 | J31: =J14/J18 -> -0.712528365
A32: Profitability
A33: Net Profit Margin | C33: =_xlfn.XLOOKUP(A33,MCD!$A$2:$A$69,MCD!B$2:B$69) -> 0.3172 | D33: =_xlfn.XLOOKUP($A$33,MCD!$A$2:$A$69,MCD!C$2:C$69) -> 0.3322 | E33: =IFERROR((C33-D33)/D33,"Missing Info") -> -0.04515352197 | F33: =D33 -> 0.3322 | G33: =IFERROR((F33-H33)/H33,"Missing Info") -> 0.246996997 | H33: =_xlfn.XLOOKUP($A$33,MCD!$A$2:$A$69,MCD!D$2:D$69) -> 0.2664 | I33: =IFERROR((H33-J33)/J33,"Missing Info") -> -0.1800554017 | J33: =_xlfn.XLOOKUP($A$33,MCD!$A$2:$A$69,MCD!E$2:E$69) -> 0.3249
A34: Gross Profit Margin | C34: =C6/C4 -> 0.7191681017 | D34: =D6/D4 -> 0.7492933861 | E34: =IFERROR((C34-D34)/D34,"Missing Info") -> -0.04020492496 | F34: =D34 -> 0.7492933861 | G34: 0.005820158457 | H34: =H6/H4 -> 0.7449576147 | I34: 0.009426000288 | J34: =J6/J4 -> 0.7380012151
A35: Return On Assets ROA | C35: =C33*C28 -> 0.3559599822 | D35: =D33*D28 -> 0.3772503932 | E35: =IFERROR((C35-D35)/D35,"Missing Info") -> -0.05643575572 | F35: =D35 -> 0.3772503932 | G35: 0.209960581 | H35: =H33*H28 -> 0.3117873418 | I35: -0.1304347122 | J35: =J33*J28 -> 0.358555414
A36: Return On Equity ROE | C36: =C35*C31 -> -0.3130939854 | D36: =D35*D31 -> -0.2991406465 | E36: =IFERROR((C36-D36)/D36,"Missing Info") -> 0.04664474402 | F36: =D36 -> -0.2991406465 | G36: 0.4567178137 | H36: =H35*H31 -> -0.2053525011 | I36: -0.1962119329 | J36: =J35*J31 -> -0.2554809029
A37: Market Value
A38: EPS (Net Income / Shares Common) | C38: =C9/C19 -> 5.326164875 | D38: =D9/D19 -> 5.683274021 | E38: =IFERROR((C38-D38)/D38,"Missing Info") -> -0.06283510974 | F38: =D38 -> 5.683274021 | G38: =IFERROR((F38-H38)/H38,"Missing Info") -> 0.2009937555 | H38: =H9/H19 -> 4.732142857 | I38: =IFERROR((H38-J38)/J38,"Missing Info") -> -0.1316893424 | J38: =J9/J19 -> 5.44982699
A39: P/E | C39: =C3/C38 -> 25.86664199 | D39: =D3/D38 -> 23.7363181 | E39: 0.08974955117 | F39: 23.7363181 | G39: -0.1269730442 | H39: =H3/H38 -> 27.1885283 | I39: 0.06599118955 | J39: =J3/J38 -> 25.50539683
A40: Book Value Per Share | C40: =C18/C19 -> -27.41218638 | D40: =D18/D19 -> -27.96441281 | E40: -0.01974747102 | F40: -27.96441281 | G40: -0.1178418671 | H40: =H18/H19 -> -31.7 | I40: 0.0941478562 | J40: =J18/J19 -> -28.97231834
A41: Market Capitalization (Stock Price * Shares Common) | C41: =C3*C19 -> 38437.83 | D41: =D3*D19 -> 37906.9 | E41: 0.01400615719 | F41: 37906.9 | G41: 0.05224456486 | H41: =H3*H19 -> 36024.8 | I41: -0.1032137612 | J41: =J3*J19 -> 40171
A42: Cash Per Share | C42: =C10/C19 -> 2.207885305 | D42: =D10/D19 -> 1.822064057 | E42: 0.211749552 | F42: 1.822064057 | G42: 0.3901306156 | H42: =H10/H19 -> 1.310714286 | I42: -0.2205834803 | J42: =J10/J19 -> 1.6816609
A43: Revenue Per Share | C43: =C4/C19 -> 27.05734767 | D43: =D4/D19 -> 25.18149466 | E43: 0.07449331477 | F43: 25.18149466 | G43: 0.03052009724 | H43: =H4/H19 -> 24.43571429 | I43: 0.07258830932 | J43: =J4/J19 -> 22.78200692
A44: Price to Book Value | C44: =C41/C40 -> -1402.216863 | D44: =D41/D40 -> -1355.54071 | E44: 0.03443360482 | F44: -1355.54071 | G44: 0.1928071914 | H44: =H41/H40 -> -1136.429022 | I44: -0.1803792936 | J44: =J41/J40 -> -1386.530395

Sheet Ratio Formulas

Sheet TrendLineChart
B2: Revenue (SALES) YOY Trend Chart
B3: Year | C3: MCD | D3: CAVA | E3: CMG | F3: SHAK | G3: YUM
B4: 2021 | C4: ='YOY MCD'!$J4 -> 23222.9 | D4: =CAVA!E2 -> 500.07 | E4: =CMG!E2 -> 7547.06 | F4: =SHAK!E2 -> 739.89 | G4: =YUM!E2 -> 6584
B5: 2022 | C5: ='YOY MCD'!$H4 -> 23183 | D5: =CAVA!D2 -> 564.12 | E5: =CMG!D2 -> 8634.65 | F5: =SHAK!D2 -> 900.49 | G5: =YUM!D2 -> 6842
B6: 2023 | C6: ='YOY MCD'!D4 -> 25494 | D6: =CAVA!C2 -> 728.7 | E6: =CMG!C2 -> 9871.65 | F6: =SHAK!C2 -> 1087.53 | G6: =YUM!C2 -> 7076
B7: 2024 | C7: ='YOY MCD'!C4 -> 25920 | D7: =CAVA!B2 -> 963.71 | E7: =CMG!B2 -> 11313.85 | F7: =SHAK!B2 -> 1252.61 | G7: =YUM!B2 -> 7549
B10: Profits YOY Trend Chart
B11: Year | C11: MCD | D11: CAVA | E11: CMG | F11: SHAK | G11: YUM
B12: 2021 | C12: ='YOY MCD'!$J6 -> 12580.2 | D12: ='YOY CAVA'!J6 -> 201.91 | E12: ='YOY CMG'!J6 -> 1707.01 | F12: ='YOY SHAK'!J6 -> 145.26 | G12: ='YOY Yum'!J6 -> 4859
B13: 2022 | C13: ='YOY MCD'!$H6 -> 13208 | D13: ='YOY CAVA'!H6 -> 226.24 | E13: ='YOY CMG'!H6 -> 2062.12 | F13: ='YOY SHAK'!H6 -> 183.39 | G13: ='YOY Yum'!H6 -> 5097
B14: 2023 | C14: ='YOY MCD'!$D6 -> 14563 | D14: ='YOY CAVA'!D6 -> 327.92 | E14: ='YOY CMG'!D6 -> 2586.09 | F14: ='YOY SHAK'!D6 -> 248.94 | G14: ='YOY Yum'!D6 -> 5302
B15: 2024 | C15: ='YOY MCD'!$C6 -> 14710 | D15: ='YOY CAVA'!C6 -> 431.48 | E15: ='YOY CMG'!C6 -> 3017.69 | F15: ='YOY SHAK'!C6 -> 302.47 | G15: ='YOY Yum'!C6 -> 5429
B18: EPS YOY Trend Chart
B19: Year | C19: MCD | D19: CAVA | E19: CMG | F19: SHAK | G19: YUM
B20: 2021 | C20: ='YOY MCD'!J38 -> 10.03617984 | D20: ='YOY CAVA'!J38 -> -0.3303587206 | E20: ='YOY CMG'!J38 -> 0.4650854701 | F20: ='YOY SHAK'!J38 -> -0.1084165478 | G20: ='YOY Yum'!J38 -> 5.44982699
B21: 2022 | C21: ='YOY MCD'!H38 -> 8.332658843 | D21: ='YOY CAVA'!H38 -> -0.5190040472 | E21: ='YOY CMG'!H38 -> 0.6508850038 | F21: ='YOY SHAK'!H38 -> -0.5035578748 | G21: ='YOY Yum'!H38 -> 4.732142857
B22: 2023 | C22: ='YOY MCD'!D38 -> 11.5649324 | D22: ='YOY CAVA'!D38 -> 0.1162668534 | E22: ='YOY CMG'!D38 -> 0.8960402538 | F22: ='YOY SHAK'!D38 -> 0.4788466084 | G22: ='YOY Yum'!D38 -> 5.683274021
B23: 2024 | C23: ='YOY MCD'!C38 -> 11.39077435 | D23: ='YOY CAVA'!C38 -> 1.137967167 | E23: ='YOY CMG'!C38 -> 1.129059798 | F23: ='YOY SHAK'!C38 -> 0.2401222954 | G23: ='YOY Yum'!C38 -> 5.326164875
B25: P/E YOY Trend Chart
B26: Year | C26: MCD | D26: CAVA | E26: CMG | F26: SHAK | G26: YUM
B27: 2021 | C27: ='YOY MCD'!J39 -> 26.71036235 | D27: ='YOY CAVA'!J39 -> -307.2417759 | E27: ='YOY CMG'!J39 -> 84.22107875 | F27: ='YOY SHAK'!J39 -> -1108.963553 | G27: ='YOY Yum'!J39 -> 25.50539683
B28: 2022 | C28: ='YOY MCD'!H39 -> 31.62615979 | D28: ='YOY CAVA'!H39 -> -195.5668757 | E28: ='YOY CMG'!H39 -> 53.91121288 | F28: ='YOY SHAK'!H39 -> -198.5869053 | G28: ='YOY Yum'!H39 -> 27.1885283
B29: 2023 | C29: ='YOY MCD'!D39 -> 25.63871449 | D29: ='YOY CAVA'!D39 -> 872.9917169 | E29: ='YOY CMG'!D39 -> 52.22979638 | F29: ='YOY SHAK'!D39 -> 213.011846 | G29: ='YOY Yum'!D39 -> 23.7363181
B30: 2024 | C30: ='YOY MCD'!C39 -> 25.44954287 | D30: ='YOY CAVA'!C39 -> 149.6088858 | E30: ='YOY CMG'!C39 -> 60.71423333 | F30: ='YOY SHAK'!C39 -> 602.4013712 | G30: ='YOY Yum'!C39 -> 25.86664199
